{"text_format":"1","workbook":"xlsx","n_sheets":1,"sheets":["Sheet1"],"not_rendered":{"charts":0,"images":0,"macros":1,"external_links":0,"defined_names":0,"comments":0,"pivot_tables":0},"unopened":[],"bounds":{"document_bytes":16777216,"sheet_cells":100000,"rows_first":2000,"rows_last":500,"rows_between":2000,"halvings":0,"cell_chars":16384,"cell_head_chars":4096},"cells_cut":0,"cells_raw":0,"read":"whole","date_system":"1900"}

{"sheet":"Sheet1","index":0,"n_rows":235,"n_cols":19,"rows_kept":235,"cut":false,"hidden":false,"merged":[]}
[]
[null,null,null,null,null,null,null,null,null,null,null,null,1,"a",null,null,null,{"$f":"IF(COUNTIF($M$2:M2,M2)=1, MAX($R$1:R1)+1,\"\")","v":1},{"$f":"IF(ROWS($S$2:S2)>ROW(INDIRECT(ADDRESS(MAX(R:R),2))),\"\",INDEX(INDIRECT(\"$M$2\"&\":$M$\"&MATCH(MAX(R:R),R:R,0)),MATCH(ROWS($A$1:A1),INDIRECT(\"$R$2\"&\":$R$\"&MATCH(MAX(R:R),R:R,0)),0)))","v":1}]
[null,null,null,null,"بالكود بعد الضغط على Run",null,null,null,null,null,null,null,2,"b",null,null,null,{"$f":"IF(COUNTIF($M$2:M3,M3)=1, MAX($R$1:R2)+1,\"\")","v":2},{"$f":"IF(ROWS($S$2:S3)>ROW(INDIRECT(ADDRESS(MAX(R:R),2))),\"\",INDEX(INDIRECT(\"$M$2\"&\":$M$\"&MATCH(MAX(R:R),R:R,0)),MATCH(ROWS($A$1:A2),INDIRECT(\"$R$2\"&\":$R$\"&MATCH(MAX(R:R),R:R,0)),0)))","v":2}]
[null,null,null,null,null,null,null,null,null,null,null,null,3,"c",null,null,null,{"$f":"IF(COUNTIF($M$2:M4,M4)=1, MAX($R$1:R3)+1,\"\")","v":3},{"$f":"IF(ROWS($S$2:S4)>ROW(INDIRECT(ADDRESS(MAX(R:R),2))),\"\",INDEX(INDIRECT(\"$M$2\"&\":$M$\"&MATCH(MAX(R:R),R:R,0)),MATCH(ROWS($A$1:A3),INDIRECT(\"$R$2\"&\":$R$\"&MATCH(MAX(R:R),R:R,0)),0)))","v":3}]
[null,null,null,null,null,null,null,null,null,null,null,null,4,"d",null,null,null,{"$f":"IF(COUNTIF($M$2:M5,M5)=1, MAX($R$1:R4)+1,\"\")","v":4},{"$f":"IF(ROWS($S$2:S5)>ROW(INDIRECT(ADDRESS(MAX(R:R),2))),\"\",INDEX(INDIRECT(\"$M$2\"&\":$M$\"&MATCH(MAX(R:R),R:R,0)),MATCH(ROWS($A$1:A4),INDIRECT(\"$R$2\"&\":$R$\"&MATCH(MAX(R:R),R:R,0)),0)))","v":4}]
[null,null,null,null,null,null,null,null,null,null,null,null,5,"e",null,null,null,{"$f":"IF(COUNTIF($M$2:M6,M6)=1, MAX($R$1:R5)+1,\"\")","v":5},{"$f":"IF(ROWS($S$2:S6)>ROW(INDIRECT(ADDRESS(MAX(R:R),2))),\"\",INDEX(INDIRECT(\"$M$2\"&\":$M$\"&MATCH(MAX(R:R),R:R,0)),MATCH(ROWS($A$1:A5),INDIRECT(\"$R$2\"&\":$R$\"&MATCH(MAX(R:R),R:R,0)),0)))","v":5}]
[null,null,null,null,null,null,null,null,null,null,null,null,6,null,null,null,null,{"$f":"IF(COUNTIF($M$2:M7,M7)=1, MAX($R$1:R6)+1,\"\")","v":6},{"$f":"IF(ROWS($S$2:S7)>ROW(INDIRECT(ADDRESS(MAX(R:R),2))),\"\",INDEX(INDIRECT(\"$M$2\"&\":$M$\"&MATCH(MAX(R:R),R:R,0)),MATCH(ROWS($A$1:A6),INDIRECT(\"$R$2\"&\":$R$\"&MATCH(MAX(R:R),R:R,0)),0)))","v":6}]
[null,null,null,null,null,null,null,null,null,null,null,null,7,null,null,null,null,{"$f":"IF(COUNTIF($M$2:M8,M8)=1, MAX($R$1:R7)+1,\"\")","v":7},{"$f":"IF(ROWS($S$2:S8)>ROW(INDIRECT(ADDRESS(MAX(R:R),2))),\"\",INDEX(INDIRECT(\"$M$2\"&\":$M$\"&MATCH(MAX(R:R),R:R,0)),MATCH(ROWS($A$1:A7),INDIRECT(\"$R$2\"&\":$R$\"&MATCH(MAX(R:R),R:R,0)),0)))","v":7}]
[null,null,null,null,null,null,null,null,null,null,null,null,8,null,null,null,null,{"$f":"IF(COUNTIF($M$2:M9,M9)=1, MAX($R$1:R8)+1,\"\")","v":8},{"$f":"IF(ROWS($S$2:S9)>ROW(INDIRECT(ADDRESS(MAX(R:R),2))),\"\",INDEX(INDIRECT(\"$M$2\"&\":$M$\"&MATCH(MAX(R:R),R:R,0)),MATCH(ROWS($A$1:A8),INDIRECT(\"$R$2\"&\":$R$\"&MATCH(MAX(R:R),R:R,0)),0)))","v":8}]
[null,null,null,null,null,null,null,null,null,null,null,null,2,null,null,null,null,{"$f":"IF(COUNTIF($M$2:M10,M10)=1, MAX($R$1:R9)+1,\"\")","v":""},{"$f":"IF(ROWS($S$2:S10)>ROW(INDIRECT(ADDRESS(MAX(R:R),2))),\"\",INDEX(INDIRECT(\"$M$2\"&\":$M$\"&MATCH(MAX(R:R),R:R,0)),MATCH(ROWS($A$1:A9),INDIRECT(\"$R$2\"&\":$R$\"&MATCH(MAX(R:R),R:R,0)),0)))","v":10}]
[null,null,null,null,null,null,null,null,null,null,null,null,10,null,null,null,null,{"$f":"IF(COUNTIF($M$2:M11,M11)=1, MAX($R$1:R10)+1,\"\")","v":9},{"$f":"IF(ROWS($S$2:S11)>ROW(INDIRECT(ADDRESS(MAX(R:R),2))),\"\",INDEX(INDIRECT(\"$M$2\"&\":$M$\"&MATCH(MAX(R:R),R:R,0)),MATCH(ROWS($A$1:A10),INDIRECT(\"$R$2\"&\":$R$\"&MATCH(MAX(R:R),R:R,0)),0)))","v":11}]
[null,null,null,null,null,null,null,null,null,null,null,null,11,null,null,null,null,{"$f":"IF(COUNTIF($M$2:M12,M12)=1, MAX($R$1:R11)+1,\"\")","v":10},{"$f":"IF(ROWS($S$2:S12)>ROW(INDIRECT(ADDRESS(MAX(R:R),2))),\"\",INDEX(INDIRECT(\"$M$2\"&\":$M$\"&MATCH(MAX(R:R),R:R,0)),MATCH(ROWS($A$1:A11),INDIRECT(\"$R$2\"&\":$R$\"&MATCH(MAX(R:R),R:R,0)),0)))","v":12}]
[null,null,null,null,null,null,null,null,null,null,null,null,12,null,null,null,null,{"$f":"IF(COUNTIF($M$2:M13,M13)=1, MAX($R$1:R12)+1,\"\")","v":11},{"$f":"IF(ROWS($S$2:S13)>ROW(INDIRECT(ADDRESS(MAX(R:R),2))),\"\",INDEX(INDIRECT(\"$M$2\"&\":$M$\"&MATCH(MAX(R:R),R:R,0)),MATCH(ROWS($A$1:A12),INDIRECT(\"$R$2\"&\":$R$\"&MATCH(MAX(R:R),R:R,0)),0)))","v":13}]
[null,null,null,null,null,null,null,null,null,null,null,null,13,null,null,null,null,{"$f":"IF(COUNTIF($M$2:M14,M14)=1, MAX($R$1:R13)+1,\"\")","v":12},{"$f":"IF(ROWS($S$2:S14)>ROW(INDIRECT(ADDRESS(MAX(R:R),2))),\"\",INDEX(INDIRECT(\"$M$2\"&\":$M$\"&MATCH(MAX(R:R),R:R,0)),MATCH(ROWS($A$1:A13),INDIRECT(\"$R$2\"&\":$R$\"&MATCH(MAX(R:R),R:R,0)),0)))","v":14}]
[null,null,null,null,null,null,null,null,null,null,null,null,14,null,null,null,null,{"$f":"IF(COUNTIF($M$2:M15,M15)=1, MAX($R$1:R14)+1,\"\")","v":13},{"$f":"IF(ROWS($S$2:S15)>ROW(INDIRECT(ADDRESS(MAX(R:R),2))),\"\",INDEX(INDIRECT(\"$M$2\"&\":$M$\"&MATCH(MAX(R:R),R:R,0)),MATCH(ROWS($A$1:A14),INDIRECT(\"$R$2\"&\":$R$\"&MATCH(MAX(R:R),R:R,0)),0)))","v":15}]
[null,null,null,null,null,null,null,null,null,null,null,null,15,null,null,null,null,{"$f":"IF(COUNTIF($M$2:M16,M16)=1, MAX($R$1:R15)+1,\"\")","v":14},{"$f":"IF(ROWS($S$2:S16)>ROW(INDIRECT(ADDRESS(MAX(R:R),2))),\"\",INDEX(INDIRECT(\"$M$2\"&\":$M$\"&MATCH(MAX(R:R),R:R,0)),MATCH(ROWS($A$1:A15),INDIRECT(\"$R$2\"&\":$R$\"&MATCH(MAX(R:R),R:R,0)),0)))","v":""}]
[null,null,null,null,null,"بالمعادلة",null,null,null,null,null,null,null,null,null,null,null,{"$f":"IF(COUNTIF($M$2:M17,M17)=1, MAX($R$1:R16)+1,\"\")","v":""},{"$f":"IF(ROWS($S$2:S17)>ROW(INDIRECT(ADDRESS(MAX(R:R),2))),\"\",INDEX(INDIRECT(\"$M$2\"&\":$M$\"&MATCH(MAX(R:R),R:R,0)),MATCH(ROWS($A$1:A16),INDIRECT(\"$R$2\"&\":$R$\"&MATCH(MAX(R:R),R:R,0)),0)))","v":""}]
[null,null,null,null,null,null,null,null,null,null,null,null,null,null,null,null,null,{"$f":"IF(COUNTIF($M$2:M18,M18)=1, MAX($R$1:R17)+1,\"\")","v":""},{"$f":"IF(ROWS($S$2:S18)>ROW(INDIRECT(ADDRESS(MAX(R:R),2))),\"\",INDEX(INDIRECT(\"$M$2\"&\":$M$\"&MATCH(MAX(R:R),R:R,0)),MATCH(ROWS($A$1:A17),INDIRECT(\"$R$2\"&\":$R$\"&MATCH(MAX(R:R),R:R,0)),0)))","v":""}]
[null,null,null,null,null,null,null,null,null,null,null,null,null,null,null,null,null,{"$f":"IF(COUNTIF($M$2:M19,M19)=1, MAX($R$1:R18)+1,\"\")","v":""},{"$f":"IF(ROWS($S$2:S19)>ROW(INDIRECT(ADDRESS(MAX(R:R),2))),\"\",INDEX(INDIRECT(\"$M$2\"&\":$M$\"&MATCH(MAX(R:R),R:R,0)),MATCH(ROWS($A$1:A18),INDIRECT(\"$R$2\"&\":$R$\"&MATCH(MAX(R:R),R:R,0)),0)))","v":""}]
[null,null,null,null,null,null,null,null,null,null,null,null,null,null,null,null,null,{"$f":"IF(COUNTIF($M$2:M20,M20)=1, MAX($R$1:R19)+1,\"\")","v":""},{"$f":"IF(ROWS($S$2:S20)>ROW(INDIRECT(ADDRESS(MAX(R:R),2))),\"\",INDEX(INDIRECT(\"$M$2\"&\":$M$\"&MATCH(MAX(R:R),R:R,0)),MATCH(ROWS($A$1:A19),INDIRECT(\"$R$2\"&\":$R$\"&MATCH(MAX(R:R),R:R,0)),0)))","v":""}]
[null,null,null,null,null,null,null,null,null,null,null,null,null,null,null,null,null,{"$f":"IF(COUNTIF($M$2:M21,M21)=1, MAX($R$1:R20)+1,\"\")","v":""},{"$f":"IF(ROWS($S$2:S21)>ROW(INDIRECT(ADDRESS(MAX(R:R),2))),\"\",INDEX(INDIRECT(\"$M$2\"&\":$M$\"&MATCH(MAX(R:R),R:R,0)),MATCH(ROWS($A$1:A20),INDIRECT(\"$R$2\"&\":$R$\"&MATCH(MAX(R:R),R:R,0)),0)))","v":""}]
[null,null,null,null,null,null,null,null,null,null,null,null,null,null,null,null,null,{"$f":"IF(COUNTIF($M$2:M22,M22)=1, MAX($R$1:R21)+1,\"\")","v":""},{"$f":"IF(ROWS($S$2:S22)>ROW(INDIRECT(ADDRESS(MAX(R:R),2))),\"\",INDEX(INDIRECT(\"$M$2\"&\":$M$\"&MATCH(MAX(R:R),R:R,0)),MATCH(ROWS($A$1:A21),INDIRECT(\"$R$2\"&\":$R$\"&MATCH(MAX(R:R),R:R,0)),0)))","v":""}]
[null,null,null,null,null,null,null,null,null,null,null,null,null,null,null,null,null,{"$f":"IF(COUNTIF($M$2:M23,M23)=1, MAX($R$1:R22)+1,\"\")","v":""},{"$f":"IF(ROWS($S$2:S23)>ROW(INDIRECT(ADDRESS(MAX(R:R),2))),\"\",INDEX(INDIRECT(\"$M$2\"&\":$M$\"&MATCH(MAX(R:R),R:R,0)),MATCH(ROWS($A$1:A22),INDIRECT(\"$R$2\"&\":$R$\"&MATCH(MAX(R:R),R:R,0)),0)))","v":""}]
[null,null,null,null,null,null,null,null,null,null,null,null,null,null,null,null,null,{"$f":"IF(COUNTIF($M$2:M24,M24)=1, MAX($R$1:R23)+1,\"\")","v":""},{"$f":"IF(ROWS($S$2:S24)>ROW(INDIRECT(ADDRESS(MAX(R:R),2))),\"\",INDEX(INDIRECT(\"$M$2\"&\":$M$\"&MATCH(MAX(R:R),R:R,0)),MATCH(ROWS($A$1:A23),INDIRECT(\"$R$2\"&\":$R$\"&MATCH(MAX(R:R),R:R,0)),0)))","v":""}]
[null,null,null,null,null,null,null,null,null,null,null,null,null,null,null,null,null,{"$f":"IF(COUNTIF($M$2:M25,M25)=1, MAX($R$1:R24)+1,\"\")","v":""},{"$f":"IF(ROWS($S$2:S25)>ROW(INDIRECT(ADDRESS(MAX(R:R),2))),\"\",INDEX(INDIRECT(\"$M$2\"&\":$M$\"&MATCH(MAX(R:R),R:R,0)),MATCH(ROWS($A$1:A24),INDIRECT(\"$R$2\"&\":$R$\"&MATCH(MAX(R:R),R:R,0)),0)))","v":""}]
[null,null,null,null,null,null,null,null,null,null,null,null,null,null,null,null,null,{"$f":"IF(COUNTIF($M$2:M26,M26)=1, MAX($R$1:R25)+1,\"\")","v":""},{"$f":"IF(ROWS($S$2:S26)>ROW(INDIRECT(ADDRESS(MAX(R:R),2))),\"\",INDEX(INDIRECT(\"$M$2\"&\":$M$\"&MATCH(MAX(R:R),R:R,0)),MATCH(ROWS($A$1:A25),INDIRECT(\"$R$2\"&\":$R$\"&MATCH(MAX(R:R),R:R,0)),0)))","v":""}]
[null,null,null,null,null,null,null,null,null,null,null,null,null,null,null,null,null,{"$f":"IF(COUNTIF($M$2:M27,M27)=1, MAX($R$1:R26)+1,\"\")","v":""},{"$f":"IF(ROWS($S$2:S27)>ROW(INDIRECT(ADDRESS(MAX(R:R),2))),\"\",INDEX(INDIRECT(\"$M$2\"&\":$M$\"&MATCH(MAX(R:R),R:R,0)),MATCH(ROWS($A$1:A26),INDIRECT(\"$R$2\"&\":$R$\"&MATCH(MAX(R:R),R:R,0)),0)))","v":""}]
[null,null,null,null,null,null,null,null,null,null,null,null,null,null,null,null,null,{"$f":"IF(COUNTIF($M$2:M28,M28)=1, MAX($R$1:R27)+1,\"\")","v":""},{"$f":"IF(ROWS($S$2:S28)>ROW(INDIRECT(ADDRESS(MAX(R:R),2))),\"\",INDEX(INDIRECT(\"$M$2\"&\":$M$\"&MATCH(MAX(R:R),R:R,0)),MATCH(ROWS($A$1:A27),INDIRECT(\"$R$2\"&\":$R$\"&MATCH(MAX(R:R),R:R,0)),0)))","v":""}]
[null,null,null,null,null,null,null,null,null,null,null,null,null,null,null,null,null,{"$f":"IF(COUNTIF($M$2:M29,M29)=1, MAX($R$1:R28)+1,\"\")","v":""},{"$f":"IF(ROWS($S$2:S29)>ROW(INDIRECT(ADDRESS(MAX(R:R),2))),\"\",INDEX(INDIRECT(\"$M$2\"&\":$M$\"&MATCH(MAX(R:R),R:R,0)),MATCH(ROWS($A$1:A28),INDIRECT(\"$R$2\"&\":$R$\"&MATCH(MAX(R:R),R:R,0)),0)))","v":""}]
[null,null,null,null,null,null,null,null,null,null,null,null,null,null,null,null,null,{"$f":"IF(COUNTIF($M$2:M30,M30)=1, MAX($R$1:R29)+1,\"\")","v":""},{"$f":"IF(ROWS($S$2:S30)>ROW(INDIRECT(ADDRESS(MAX(R:R),2))),\"\",INDEX(INDIRECT(\"$M$2\"&\":$M$\"&MATCH(MAX(R:R),R:R,0)),MATCH(ROWS($A$1:A29),INDIRECT(\"$R$2\"&\":$R$\"&MATCH(MAX(R:R),R:R,0)),0)))","v":""}]
[null,null,null,null,null,null,null,null,null,null,null,null,null,null,null,null,null,{"$f":"IF(COUNTIF($M$2:M31,M31)=1, MAX($R$1:R30)+1,\"\")","v":""},{"$f":"IF(ROWS($S$2:S31)>ROW(INDIRECT(ADDRESS(MAX(R:R),2))),\"\",INDEX(INDIRECT(\"$M$2\"&\":$M$\"&MATCH(MAX(R:R),R:R,0)),MATCH(ROWS($A$1:A30),INDIRECT(\"$R$2\"&\":$R$\"&MATCH(MAX(R:R),R:R,0)),0)))","v":""}]
[null,null,null,null,null,null,null,null,null,null,null,null,null,null,null,null,null,{"$f":"IF(COUNTIF($M$2:M32,M32)=1, MAX($R$1:R31)+1,\"\")","v":""},{"$f":"IF(ROWS($S$2:S32)>ROW(INDIRECT(ADDRESS(MAX(R:R),2))),\"\",INDEX(INDIRECT(\"$M$2\"&\":$M$\"&MATCH(MAX(R:R),R:R,0)),MATCH(ROWS($A$1:A31),INDIRECT(\"$R$2\"&\":$R$\"&MATCH(MAX(R:R),R:R,0)),0)))","v":""}]
[null,null,null,null,null,null,null,null,null,null,null,null,null,null,null,null,null,{"$f":"IF(COUNTIF($M$2:M33,M33)=1, MAX($R$1:R32)+1,\"\")","v":""},{"$f":"IF(ROWS($S$2:S33)>ROW(INDIRECT(ADDRESS(MAX(R:R),2))),\"\",INDEX(INDIRECT(\"$M$2\"&\":$M$\"&MATCH(MAX(R:R),R:R,0)),MATCH(ROWS($A$1:A32),INDIRECT(\"$R$2\"&\":$R$\"&MATCH(MAX(R:R),R:R,0)),0)))","v":""}]
[null,null,null,null,null,null,null,null,null,null,null,null,null,null,null,null,null,{"$f":"IF(COUNTIF($M$2:M34,M34)=1, MAX($R$1:R33)+1,\"\")","v":""},{"$f":"IF(ROWS($S$2:S34)>ROW(INDIRECT(ADDRESS(MAX(R:R),2))),\"\",INDEX(INDIRECT(\"$M$2\"&\":$M$\"&MATCH(MAX(R:R),R:R,0)),MATCH(ROWS($A$1:A33),INDIRECT(\"$R$2\"&\":$R$\"&MATCH(MAX(R:R),R:R,0)),0)))","v":""}]
[null,null,null,null,null,null,null,null,null,null,null,null,null,null,null,null,null,{"$f":"IF(COUNTIF($M$2:M35,M35)=1, MAX($R$1:R34)+1,\"\")","v":""},{"$f":"IF(ROWS($S$2:S35)>ROW(INDIRECT(ADDRESS(MAX(R:R),2))),\"\",INDEX(INDIRECT(\"$M$2\"&\":$M$\"&MATCH(MAX(R:R),R:R,0)),MATCH(ROWS($A$1:A34),INDIRECT(\"$R$2\"&\":$R$\"&MATCH(MAX(R:R),R:R,0)),0)))","v":""}]
[null,null,null,null,null,null,null,null,null,null,null,null,null,null,null,null,null,{"$f":"IF(COUNTIF($M$2:M36,M36)=1, MAX($R$1:R35)+1,\"\")","v":""},{"$f":"IF(ROWS($S$2:S36)>ROW(INDIRECT(ADDRESS(MAX(R:R),2))),\"\",INDEX(INDIRECT(\"$M$2\"&\":$M$\"&MATCH(MAX(R:R),R:R,0)),MATCH(ROWS($A$1:A35),INDIRECT(\"$R$2\"&\":$R$\"&MATCH(MAX(R:R),R:R,0)),0)))","v":""}]
[null,null,null,null,null,null,null,null,null,null,null,null,null,null,null,null,null,{"$f":"IF(COUNTIF($M$2:M37,M37)=1, MAX($R$1:R36)+1,\"\")","v":""},{"$f":"IF(ROWS($S$2:S37)>ROW(INDIRECT(ADDRESS(MAX(R:R),2))),\"\",INDEX(INDIRECT(\"$M$2\"&\":$M$\"&MATCH(MAX(R:R),R:R,0)),MATCH(ROWS($A$1:A36),INDIRECT(\"$R$2\"&\":$R$\"&MATCH(MAX(R:R),R:R,0)),0)))","v":""}]
[null,null,null,null,null,null,null,null,null,null,null,null,null,null,null,null,null,{"$f":"IF(COUNTIF($M$2:M38,M38)=1, MAX($R$1:R37)+1,\"\")","v":""},{"$f":"IF(ROWS($S$2:S38)>ROW(INDIRECT(ADDRESS(MAX(R:R),2))),\"\",INDEX(INDIRECT(\"$M$2\"&\":$M$\"&MATCH(MAX(R:R),R:R,0)),MATCH(ROWS($A$1:A37),INDIRECT(\"$R$2\"&\":$R$\"&MATCH(MAX(R:R),R:R,0)),0)))","v":""}]
[null,null,null,null,null,null,null,null,null,null,null,null,null,null,null,null,null,{"$f":"IF(COUNTIF($M$2:M39,M39)=1, MAX($R$1:R38)+1,\"\")","v":""},{"$f":"IF(ROWS($S$2:S39)>ROW(INDIRECT(ADDRESS(MAX(R:R),2))),\"\",INDEX(INDIRECT(\"$M$2\"&\":$M$\"&MATCH(MAX(R:R),R:R,0)),MATCH(ROWS($A$1:A38),INDIRECT(\"$R$2\"&\":$R$\"&MATCH(MAX(R:R),R:R,0)),0)))","v":""}]
[null,null,null,null,null,null,null,null,null,null,null,null,null,null,null,null,null,{"$f":"IF(COUNTIF($M$2:M40,M40)=1, MAX($R$1:R39)+1,\"\")","v":""},{"$f":"IF(ROWS($S$2:S40)>ROW(INDIRECT(ADDRESS(MAX(R:R),2))),\"\",INDEX(INDIRECT(\"$M$2\"&\":$M$\"&MATCH(MAX(R:R),R:R,0)),MATCH(ROWS($A$1:A39),INDIRECT(\"$R$2\"&\":$R$\"&MATCH(MAX(R:R),R:R,0)),0)))","v":""}]
[null,null,null,null,null,null,null,null,null,null,null,null,null,null,null,null,null,{"$f":"IF(COUNTIF($M$2:M41,M41)=1, MAX($R$1:R40)+1,\"\")","v":""},{"$f":"IF(ROWS($S$2:S41)>ROW(INDIRECT(ADDRESS(MAX(R:R),2))),\"\",INDEX(INDIRECT(\"$M$2\"&\":$M$\"&MATCH(MAX(R:R),R:R,0)),MATCH(ROWS($A$1:A40),INDIRECT(\"$R$2\"&\":$R$\"&MATCH(MAX(R:R),R:R,0)),0)))","v":""}]
[null,null,null,null,null,null,null,null,null,null,null,null,null,null,null,null,null,{"$f":"IF(COUNTIF($M$2:M42,M42)=1, MAX($R$1:R41)+1,\"\")","v":""},{"$f":"IF(ROWS($S$2:S42)>ROW(INDIRECT(ADDRESS(MAX(R:R),2))),\"\",INDEX(INDIRECT(\"$M$2\"&\":$M$\"&MATCH(MAX(R:R),R:R,0)),MATCH(ROWS($A$1:A41),INDIRECT(\"$R$2\"&\":$R$\"&MATCH(MAX(R:R),R:R,0)),0)))","v":""}]
[null,null,null,null,null,null,null,null,null,null,null,null,null,null,null,null,null,{"$f":"IF(COUNTIF($M$2:M43,M43)=1, MAX($R$1:R42)+1,\"\")","v":""},{"$f":"IF(ROWS($S$2:S43)>ROW(INDIRECT(ADDRESS(MAX(R:R),2))),\"\",INDEX(INDIRECT(\"$M$2\"&\":$M$\"&MATCH(MAX(R:R),R:R,0)),MATCH(ROWS($A$1:A42),INDIRECT(\"$R$2\"&\":$R$\"&MATCH(MAX(R:R),R:R,0)),0)))","v":""}]
[null,null,null,null,null,null,null,null,null,null,null,null,null,null,null,null,null,{"$f":"IF(COUNTIF($M$2:M44,M44)=1, MAX($R$1:R43)+1,\"\")","v":""},{"$f":"IF(ROWS($S$2:S44)>ROW(INDIRECT(ADDRESS(MAX(R:R),2))),\"\",INDEX(INDIRECT(\"$M$2\"&\":$M$\"&MATCH(MAX(R:R),R:R,0)),MATCH(ROWS($A$1:A43),INDIRECT(\"$R$2\"&\":$R$\"&MATCH(MAX(R:R),R:R,0)),0)))","v":""}]
[null,null,null,null,null,null,null,null,null,null,null,null,null,null,null,null,null,{"$f":"IF(COUNTIF($M$2:M45,M45)=1, MAX($R$1:R44)+1,\"\")","v":""},{"$f":"IF(ROWS($S$2:S45)>ROW(INDIRECT(ADDRESS(MAX(R:R),2))),\"\",INDEX(INDIRECT(\"$M$2\"&\":$M$\"&MATCH(MAX(R:R),R:R,0)),MATCH(ROWS($A$1:A44),INDIRECT(\"$R$2\"&\":$R$\"&MATCH(MAX(R:R),R:R,0)),0)))","v":""}]
[null,null,null,null,null,null,null,null,null,null,null,null,null,null,null,null,null,{"$f":"IF(COUNTIF($M$2:M46,M46)=1, MAX($R$1:R45)+1,\"\")","v":""},{"$f":"IF(ROWS($S$2:S46)>ROW(INDIRECT(ADDRESS(MAX(R:R),2))),\"\",INDEX(INDIRECT(\"$M$2\"&\":$M$\"&MATCH(MAX(R:R),R:R,0)),MATCH(ROWS($A$1:A45),INDIRECT(\"$R$2\"&\":$R$\"&MATCH(MAX(R:R),R:R,0)),0)))","v":""}]
[null,null,null,null,null,null,null,null,null,null,null,null,null,null,null,null,null,{"$f":"IF(COUNTIF($M$2:M47,M47)=1, MAX($R$1:R46)+1,\"\")","v":""},{"$f":"IF(ROWS($S$2:S47)>ROW(INDIRECT(ADDRESS(MAX(R:R),2))),\"\",INDEX(INDIRECT(\"$M$2\"&\":$M$\"&MATCH(MAX(R:R),R:R,0)),MATCH(ROWS($A$1:A46),INDIRECT(\"$R$2\"&\":$R$\"&MATCH(MAX(R:R),R:R,0)),0)))","v":""}]
[null,null,null,null,null,null,null,null,null,null,null,null,null,null,null,null,null,{"$f":"IF(COUNTIF($M$2:M48,M48)=1, MAX($R$1:R47)+1,\"\")","v":""},{"$f":"IF(ROWS($S$2:S48)>ROW(INDIRECT(ADDRESS(MAX(R:R),2))),\"\",INDEX(INDIRECT(\"$M$2\"&\":$M$\"&MATCH(MAX(R:R),R:R,0)),MATCH(ROWS($A$1:A47),INDIRECT(\"$R$2\"&\":$R$\"&MATCH(MAX(R:R),R:R,0)),0)))","v":""}]
[null,null,null,null,null,null,null,null,null,null,null,null,null,null,null,null,null,{"$f":"IF(COUNTIF($M$2:M49,M49)=1, MAX($R$1:R48)+1,\"\")","v":""},{"$f":"IF(ROWS($S$2:S49)>ROW(INDIRECT(ADDRESS(MAX(R:R),2))),\"\",INDEX(INDIRECT(\"$M$2\"&\":$M$\"&MATCH(MAX(R:R),R:R,0)),MATCH(ROWS($A$1:A48),INDIRECT(\"$R$2\"&\":$R$\"&MATCH(MAX(R:R),R:R,0)),0)))","v":""}]
[null,null,null,null,null,null,null,null,null,null,null,null,null,null,null,null,null,{"$f":"IF(COUNTIF($M$2:M50,M50)=1, MAX($R$1:R49)+1,\"\")","v":""},{"$f":"IF(ROWS($S$2:S50)>ROW(INDIRECT(ADDRESS(MAX(R:R),2))),\"\",INDEX(INDIRECT(\"$M$2\"&\":$M$\"&MATCH(MAX(R:R),R:R,0)),MATCH(ROWS($A$1:A49),INDIRECT(\"$R$2\"&\":$R$\"&MATCH(MAX(R:R),R:R,0)),0)))","v":""}]
[null,null,null,null,null,null,null,null,null,null,null,null,null,null,null,null,null,{"$f":"IF(COUNTIF($M$2:M51,M51)=1, MAX($R$1:R50)+1,\"\")","v":""},{"$f":"IF(ROWS($S$2:S51)>ROW(INDIRECT(ADDRESS(MAX(R:R),2))),\"\",INDEX(INDIRECT(\"$M$2\"&\":$M$\"&MATCH(MAX(R:R),R:R,0)),MATCH(ROWS($A$1:A50),INDIRECT(\"$R$2\"&\":$R$\"&MATCH(MAX(R:R),R:R,0)),0)))","v":""}]
[null,null,null,null,null,null,null,null,null,null,null,null,null,null,null,null,null,{"$f":"IF(COUNTIF($M$2:M52,M52)=1, MAX($R$1:R51)+1,\"\")","v":""},{"$f":"IF(ROWS($S$2:S52)>ROW(INDIRECT(ADDRESS(MAX(R:R),2))),\"\",INDEX(INDIRECT(\"$M$2\"&\":$M$\"&MATCH(MAX(R:R),R:R,0)),MATCH(ROWS($A$1:A51),INDIRECT(\"$R$2\"&\":$R$\"&MATCH(MAX(R:R),R:R,0)),0)))","v":""}]
[null,null,null,null,null,null,null,null,null,null,null,null,null,null,null,null,null,{"$f":"IF(COUNTIF($M$2:M53,M53)=1, MAX($R$1:R52)+1,\"\")","v":""},{"$f":"IF(ROWS($S$2:S53)>ROW(INDIRECT(ADDRESS(MAX(R:R),2))),\"\",INDEX(INDIRECT(\"$M$2\"&\":$M$\"&MATCH(MAX(R:R),R:R,0)),MATCH(ROWS($A$1:A52),INDIRECT(\"$R$2\"&\":$R$\"&MATCH(MAX(R:R),R:R,0)),0)))","v":""}]
[null,null,null,null,null,null,null,null,null,null,null,null,null,null,null,null,null,{"$f":"IF(COUNTIF($M$2:M54,M54)=1, MAX($R$1:R53)+1,\"\")","v":""},{"$f":"IF(ROWS($S$2:S54)>ROW(INDIRECT(ADDRESS(MAX(R:R),2))),\"\",INDEX(INDIRECT(\"$M$2\"&\":$M$\"&MATCH(MAX(R:R),R:R,0)),MATCH(ROWS($A$1:A53),INDIRECT(\"$R$2\"&\":$R$\"&MATCH(MAX(R:R),R:R,0)),0)))","v":""}]
[null,null,null,null,null,null,null,null,null,null,null,null,null,null,null,null,null,{"$f":"IF(COUNTIF($M$2:M55,M55)=1, MAX($R$1:R54)+1,\"\")","v":""},{"$f":"IF(ROWS($S$2:S55)>ROW(INDIRECT(ADDRESS(MAX(R:R),2))),\"\",INDEX(INDIRECT(\"$M$2\"&\":$M$\"&MATCH(MAX(R:R),R:R,0)),MATCH(ROWS($A$1:A54),INDIRECT(\"$R$2\"&\":$R$\"&MATCH(MAX(R:R),R:R,0)),0)))","v":""}]
[null,null,null,null,null,null,null,null,null,null,null,null,null,null,null,null,null,{"$f":"IF(COUNTIF($M$2:M56,M56)=1, MAX($R$1:R55)+1,\"\")","v":""},{"$f":"IF(ROWS($S$2:S56)>ROW(INDIRECT(ADDRESS(MAX(R:R),2))),\"\",INDEX(INDIRECT(\"$M$2\"&\":$M$\"&MATCH(MAX(R:R),R:R,0)),MATCH(ROWS($A$1:A55),INDIRECT(\"$R$2\"&\":$R$\"&MATCH(MAX(R:R),R:R,0)),0)))","v":""}]
[null,null,null,null,null,null,null,null,null,null,null,null,null,null,null,null,null,{"$f":"IF(COUNTIF($M$2:M57,M57)=1, MAX($R$1:R56)+1,\"\")","v":""},{"$f":"IF(ROWS($S$2:S57)>ROW(INDIRECT(ADDRESS(MAX(R:R),2))),\"\",INDEX(INDIRECT(\"$M$2\"&\":$M$\"&MATCH(MAX(R:R),R:R,0)),MATCH(ROWS($A$1:A56),INDIRECT(\"$R$2\"&\":$R$\"&MATCH(MAX(R:R),R:R,0)),0)))","v":""}]
[null,null,null,null,null,null,null,null,null,null,null,null,null,null,null,null,null,{"$f":"IF(COUNTIF($M$2:M58,M58)=1, MAX($R$1:R57)+1,\"\")","v":""},{"$f":"IF(ROWS($S$2:S58)>ROW(INDIRECT(ADDRESS(MAX(R:R),2))),\"\",INDEX(INDIRECT(\"$M$2\"&\":$M$\"&MATCH(MAX(R:R),R:R,0)),MATCH(ROWS($A$1:A57),INDIRECT(\"$R$2\"&\":$R$\"&MATCH(MAX(R:R),R:R,0)),0)))","v":""}]
[null,null,null,null,null,null,null,null,null,null,null,null,null,null,null,null,null,{"$f":"IF(COUNTIF($M$2:M59,M59)=1, MAX($R$1:R58)+1,\"\")","v":""},{"$f":"IF(ROWS($S$2:S59)>ROW(INDIRECT(ADDRESS(MAX(R:R),2))),\"\",INDEX(INDIRECT(\"$M$2\"&\":$M$\"&MATCH(MAX(R:R),R:R,0)),MATCH(ROWS($A$1:A58),INDIRECT(\"$R$2\"&\":$R$\"&MATCH(MAX(R:R),R:R,0)),0)))","v":""}]
[null,null,null,null,null,null,null,null,null,null,null,null,null,null,null,null,null,{"$f":"IF(COUNTIF($M$2:M60,M60)=1, MAX($R$1:R59)+1,\"\")","v":""},{"$f":"IF(ROWS($S$2:S60)>ROW(INDIRECT(ADDRESS(MAX(R:R),2))),\"\",INDEX(INDIRECT(\"$M$2\"&\":$M$\"&MATCH(MAX(R:R),R:R,0)),MATCH(ROWS($A$1:A59),INDIRECT(\"$R$2\"&\":$R$\"&MATCH(MAX(R:R),R:R,0)),0)))","v":""}]
[null,null,null,null,null,null,null,null,null,null,null,null,null,null,null,null,null,{"$f":"IF(COUNTIF($M$2:M61,M61)=1, MAX($R$1:R60)+1,\"\")","v":""},{"$f":"IF(ROWS($S$2:S61)>ROW(INDIRECT(ADDRESS(MAX(R:R),2))),\"\",INDEX(INDIRECT(\"$M$2\"&\":$M$\"&MATCH(MAX(R:R),R:R,0)),MATCH(ROWS($A$1:A60),INDIRECT(\"$R$2\"&\":$R$\"&MATCH(MAX(R:R),R:R,0)),0)))","v":""}]
[null,null,null,null,null,null,null,null,null,null,null,null,null,null,null,null,null,{"$f":"IF(COUNTIF($M$2:M62,M62)=1, MAX($R$1:R61)+1,\"\")","v":""},{"$f":"IF(ROWS($S$2:S62)>ROW(INDIRECT(ADDRESS(MAX(R:R),2))),\"\",INDEX(INDIRECT(\"$M$2\"&\":$M$\"&MATCH(MAX(R:R),R:R,0)),MATCH(ROWS($A$1:A61),INDIRECT(\"$R$2\"&\":$R$\"&MATCH(MAX(R:R),R:R,0)),0)))","v":""}]
[null,null,null,null,null,null,null,null,null,null,null,null,null,null,null,null,null,{"$f":"IF(COUNTIF($M$2:M63,M63)=1, MAX($R$1:R62)+1,\"\")","v":""},{"$f":"IF(ROWS($S$2:S63)>ROW(INDIRECT(ADDRESS(MAX(R:R),2))),\"\",INDEX(INDIRECT(\"$M$2\"&\":$M$\"&MATCH(MAX(R:R),R:R,0)),MATCH(ROWS($A$1:A62),INDIRECT(\"$R$2\"&\":$R$\"&MATCH(MAX(R:R),R:R,0)),0)))","v":""}]
[null,null,null,null,null,null,null,null,null,null,null,null,null,null,null,null,null,{"$f":"IF(COUNTIF($M$2:M64,M64)=1, MAX($R$1:R63)+1,\"\")","v":""},{"$f":"IF(ROWS($S$2:S64)>ROW(INDIRECT(ADDRESS(MAX(R:R),2))),\"\",INDEX(INDIRECT(\"$M$2\"&\":$M$\"&MATCH(MAX(R:R),R:R,0)),MATCH(ROWS($A$1:A63),INDIRECT(\"$R$2\"&\":$R$\"&MATCH(MAX(R:R),R:R,0)),0)))","v":""}]
[null,null,null,null,null,null,null,null,null,null,null,null,null,null,null,null,null,{"$f":"IF(COUNTIF($M$2:M65,M65)=1, MAX($R$1:R64)+1,\"\")","v":""},{"$f":"IF(ROWS($S$2:S65)>ROW(INDIRECT(ADDRESS(MAX(R:R),2))),\"\",INDEX(INDIRECT(\"$M$2\"&\":$M$\"&MATCH(MAX(R:R),R:R,0)),MATCH(ROWS($A$1:A64),INDIRECT(\"$R$2\"&\":$R$\"&MATCH(MAX(R:R),R:R,0)),0)))","v":""}]
[null,null,null,null,null,null,null,null,null,null,null,null,null,null,null,null,null,{"$f":"IF(COUNTIF($M$2:M66,M66)=1, MAX($R$1:R65)+1,\"\")","v":""},{"$f":"IF(ROWS($S$2:S66)>ROW(INDIRECT(ADDRESS(MAX(R:R),2))),\"\",INDEX(INDIRECT(\"$M$2\"&\":$M$\"&MATCH(MAX(R:R),R:R,0)),MATCH(ROWS($A$1:A65),INDIRECT(\"$R$2\"&\":$R$\"&MATCH(MAX(R:R),R:R,0)),0)))","v":""}]
[null,null,null,null,null,null,null,null,null,null,null,null,null,null,null,null,null,{"$f":"IF(COUNTIF($M$2:M67,M67)=1, MAX($R$1:R66)+1,\"\")","v":""},{"$f":"IF(ROWS($S$2:S67)>ROW(INDIRECT(ADDRESS(MAX(R:R),2))),\"\",INDEX(INDIRECT(\"$M$2\"&\":$M$\"&MATCH(MAX(R:R),R:R,0)),MATCH(ROWS($A$1:A66),INDIRECT(\"$R$2\"&\":$R$\"&MATCH(MAX(R:R),R:R,0)),0)))","v":""}]
[null,null,null,null,null,null,null,null,null,null,null,null,null,null,null,null,null,{"$f":"IF(COUNTIF($M$2:M68,M68)=1, MAX($R$1:R67)+1,\"\")","v":""},{"$f":"IF(ROWS($S$2:S68)>ROW(INDIRECT(ADDRESS(MAX(R:R),2))),\"\",INDEX(INDIRECT(\"$M$2\"&\":$M$\"&MATCH(MAX(R:R),R:R,0)),MATCH(ROWS($A$1:A67),INDIRECT(\"$R$2\"&\":$R$\"&MATCH(MAX(R:R),R:R,0)),0)))","v":""}]
[null,null,null,null,null,null,null,null,null,null,null,null,null,null,null,null,null,{"$f":"IF(COUNTIF($M$2:M69,M69)=1, MAX($R$1:R68)+1,\"\")","v":""},{"$f":"IF(ROWS($S$2:S69)>ROW(INDIRECT(ADDRESS(MAX(R:R),2))),\"\",INDEX(INDIRECT(\"$M$2\"&\":$M$\"&MATCH(MAX(R:R),R:R,0)),MATCH(ROWS($A$1:A68),INDIRECT(\"$R$2\"&\":$R$\"&MATCH(MAX(R:R),R:R,0)),0)))","v":""}]
[null,null,null,null,null,null,null,null,null,null,null,null,null,null,null,null,null,{"$f":"IF(COUNTIF($M$2:M70,M70)=1, MAX($R$1:R69)+1,\"\")","v":""},{"$f":"IF(ROWS($S$2:S70)>ROW(INDIRECT(ADDRESS(MAX(R:R),2))),\"\",INDEX(INDIRECT(\"$M$2\"&\":$M$\"&MATCH(MAX(R:R),R:R,0)),MATCH(ROWS($A$1:A69),INDIRECT(\"$R$2\"&\":$R$\"&MATCH(MAX(R:R),R:R,0)),0)))","v":""}]
[null,null,null,null,null,null,null,null,null,null,null,null,null,null,null,null,null,{"$f":"IF(COUNTIF($M$2:M71,M71)=1, MAX($R$1:R70)+1,\"\")","v":""},{"$f":"IF(ROWS($S$2:S71)>ROW(INDIRECT(ADDRESS(MAX(R:R),2))),\"\",INDEX(INDIRECT(\"$M$2\"&\":$M$\"&MATCH(MAX(R:R),R:R,0)),MATCH(ROWS($A$1:A70),INDIRECT(\"$R$2\"&\":$R$\"&MATCH(MAX(R:R),R:R,0)),0)))","v":""}]
[null,null,null,null,null,null,null,null,null,null,null,null,null,null,null,null,null,{"$f":"IF(COUNTIF($M$2:M72,M72)=1, MAX($R$1:R71)+1,\"\")","v":""},{"$f":"IF(ROWS($S$2:S72)>ROW(INDIRECT(ADDRESS(MAX(R:R),2))),\"\",INDEX(INDIRECT(\"$M$2\"&\":$M$\"&MATCH(MAX(R:R),R:R,0)),MATCH(ROWS($A$1:A71),INDIRECT(\"$R$2\"&\":$R$\"&MATCH(MAX(R:R),R:R,0)),0)))","v":""}]
[null,null,null,null,null,null,null,null,null,null,null,null,null,null,null,null,null,{"$f":"IF(COUNTIF($M$2:M73,M73)=1, MAX($R$1:R72)+1,\"\")","v":""},{"$f":"IF(ROWS($S$2:S73)>ROW(INDIRECT(ADDRESS(MAX(R:R),2))),\"\",INDEX(INDIRECT(\"$M$2\"&\":$M$\"&MATCH(MAX(R:R),R:R,0)),MATCH(ROWS($A$1:A72),INDIRECT(\"$R$2\"&\":$R$\"&MATCH(MAX(R:R),R:R,0)),0)))","v":""}]
[null,null,null,null,null,null,null,null,null,null,null,null,null,null,null,null,null,{"$f":"IF(COUNTIF($M$2:M74,M74)=1, MAX($R$1:R73)+1,\"\")","v":""},{"$f":"IF(ROWS($S$2:S74)>ROW(INDIRECT(ADDRESS(MAX(R:R),2))),\"\",INDEX(INDIRECT(\"$M$2\"&\":$M$\"&MATCH(MAX(R:R),R:R,0)),MATCH(ROWS($A$1:A73),INDIRECT(\"$R$2\"&\":$R$\"&MATCH(MAX(R:R),R:R,0)),0)))","v":""}]
[null,null,null,null,null,null,null,null,null,null,null,null,null,null,null,null,null,{"$f":"IF(COUNTIF($M$2:M75,M75)=1, MAX($R$1:R74)+1,\"\")","v":""},{"$f":"IF(ROWS($S$2:S75)>ROW(INDIRECT(ADDRESS(MAX(R:R),2))),\"\",INDEX(INDIRECT(\"$M$2\"&\":$M$\"&MATCH(MAX(R:R),R:R,0)),MATCH(ROWS($A$1:A74),INDIRECT(\"$R$2\"&\":$R$\"&MATCH(MAX(R:R),R:R,0)),0)))","v":""}]
[null,null,null,null,null,null,null,null,null,null,null,null,null,null,null,null,null,{"$f":"IF(COUNTIF($M$2:M76,M76)=1, MAX($R$1:R75)+1,\"\")","v":""},{"$f":"IF(ROWS($S$2:S76)>ROW(INDIRECT(ADDRESS(MAX(R:R),2))),\"\",INDEX(INDIRECT(\"$M$2\"&\":$M$\"&MATCH(MAX(R:R),R:R,0)),MATCH(ROWS($A$1:A75),INDIRECT(\"$R$2\"&\":$R$\"&MATCH(MAX(R:R),R:R,0)),0)))","v":""}]
[null,null,null,null,null,null,null,null,null,null,null,null,null,null,null,null,null,{"$f":"IF(COUNTIF($M$2:M77,M77)=1, MAX($R$1:R76)+1,\"\")","v":""},{"$f":"IF(ROWS($S$2:S77)>ROW(INDIRECT(ADDRESS(MAX(R:R),2))),\"\",INDEX(INDIRECT(\"$M$2\"&\":$M$\"&MATCH(MAX(R:R),R:R,0)),MATCH(ROWS($A$1:A76),INDIRECT(\"$R$2\"&\":$R$\"&MATCH(MAX(R:R),R:R,0)),0)))","v":""}]
[null,null,null,null,null,null,null,null,null,null,null,null,null,null,null,null,null,{"$f":"IF(COUNTIF($M$2:M78,M78)=1, MAX($R$1:R77)+1,\"\")","v":""},{"$f":"IF(ROWS($S$2:S78)>ROW(INDIRECT(ADDRESS(MAX(R:R),2))),\"\",INDEX(INDIRECT(\"$M$2\"&\":$M$\"&MATCH(MAX(R:R),R:R,0)),MATCH(ROWS($A$1:A77),INDIRECT(\"$R$2\"&\":$R$\"&MATCH(MAX(R:R),R:R,0)),0)))","v":""}]
[null,null,null,null,null,null,null,null,null,null,null,null,null,null,null,null,null,{"$f":"IF(COUNTIF($M$2:M79,M79)=1, MAX($R$1:R78)+1,\"\")","v":""},{"$f":"IF(ROWS($S$2:S79)>ROW(INDIRECT(ADDRESS(MAX(R:R),2))),\"\",INDEX(INDIRECT(\"$M$2\"&\":$M$\"&MATCH(MAX(R:R),R:R,0)),MATCH(ROWS($A$1:A78),INDIRECT(\"$R$2\"&\":$R$\"&MATCH(MAX(R:R),R:R,0)),0)))","v":""}]
[null,null,null,null,null,null,null,null,null,null,null,null,null,null,null,null,null,{"$f":"IF(COUNTIF($M$2:M80,M80)=1, MAX($R$1:R79)+1,\"\")","v":""},{"$f":"IF(ROWS($S$2:S80)>ROW(INDIRECT(ADDRESS(MAX(R:R),2))),\"\",INDEX(INDIRECT(\"$M$2\"&\":$M$\"&MATCH(MAX(R:R),R:R,0)),MATCH(ROWS($A$1:A79),INDIRECT(\"$R$2\"&\":$R$\"&MATCH(MAX(R:R),R:R,0)),0)))","v":""}]
[null,null,null,null,null,null,null,null,null,null,null,null,null,null,null,null,null,{"$f":"IF(COUNTIF($M$2:M81,M81)=1, MAX($R$1:R80)+1,\"\")","v":""},{"$f":"IF(ROWS($S$2:S81)>ROW(INDIRECT(ADDRESS(MAX(R:R),2))),\"\",INDEX(INDIRECT(\"$M$2\"&\":$M$\"&MATCH(MAX(R:R),R:R,0)),MATCH(ROWS($A$1:A80),INDIRECT(\"$R$2\"&\":$R$\"&MATCH(MAX(R:R),R:R,0)),0)))","v":""}]
[null,null,null,null,null,null,null,null,null,null,null,null,null,null,null,null,null,{"$f":"IF(COUNTIF($M$2:M82,M82)=1, MAX($R$1:R81)+1,\"\")","v":""},{"$f":"IF(ROWS($S$2:S82)>ROW(INDIRECT(ADDRESS(MAX(R:R),2))),\"\",INDEX(INDIRECT(\"$M$2\"&\":$M$\"&MATCH(MAX(R:R),R:R,0)),MATCH(ROWS($A$1:A81),INDIRECT(\"$R$2\"&\":$R$\"&MATCH(MAX(R:R),R:R,0)),0)))","v":""}]
[null,null,null,null,null,null,null,null,null,null,null,null,null,null,null,null,null,{"$f":"IF(COUNTIF($M$2:M83,M83)=1, MAX($R$1:R82)+1,\"\")","v":""},{"$f":"IF(ROWS($S$2:S83)>ROW(INDIRECT(ADDRESS(MAX(R:R),2))),\"\",INDEX(INDIRECT(\"$M$2\"&\":$M$\"&MATCH(MAX(R:R),R:R,0)),MATCH(ROWS($A$1:A82),INDIRECT(\"$R$2\"&\":$R$\"&MATCH(MAX(R:R),R:R,0)),0)))","v":""}]
[null,null,null,null,null,null,null,null,null,null,null,null,null,null,null,null,null,{"$f":"IF(COUNTIF($M$2:M84,M84)=1, MAX($R$1:R83)+1,\"\")","v":""},{"$f":"IF(ROWS($S$2:S84)>ROW(INDIRECT(ADDRESS(MAX(R:R),2))),\"\",INDEX(INDIRECT(\"$M$2\"&\":$M$\"&MATCH(MAX(R:R),R:R,0)),MATCH(ROWS($A$1:A83),INDIRECT(\"$R$2\"&\":$R$\"&MATCH(MAX(R:R),R:R,0)),0)))","v":""}]
[null,null,null,null,null,null,null,null,null,null,null,null,null,null,null,null,null,{"$f":"IF(COUNTIF($M$2:M85,M85)=1, MAX($R$1:R84)+1,\"\")","v":""},{"$f":"IF(ROWS($S$2:S85)>ROW(INDIRECT(ADDRESS(MAX(R:R),2))),\"\",INDEX(INDIRECT(\"$M$2\"&\":$M$\"&MATCH(MAX(R:R),R:R,0)),MATCH(ROWS($A$1:A84),INDIRECT(\"$R$2\"&\":$R$\"&MATCH(MAX(R:R),R:R,0)),0)))","v":""}]
[null,null,null,null,null,null,null,null,null,null,null,null,null,null,null,null,null,{"$f":"IF(COUNTIF($M$2:M86,M86)=1, MAX($R$1:R85)+1,\"\")","v":""},{"$f":"IF(ROWS($S$2:S86)>ROW(INDIRECT(ADDRESS(MAX(R:R),2))),\"\",INDEX(INDIRECT(\"$M$2\"&\":$M$\"&MATCH(MAX(R:R),R:R,0)),MATCH(ROWS($A$1:A85),INDIRECT(\"$R$2\"&\":$R$\"&MATCH(MAX(R:R),R:R,0)),0)))","v":""}]
[null,null,null,null,null,null,null,null,null,null,null,null,null,null,null,null,null,{"$f":"IF(COUNTIF($M$2:M87,M87)=1, MAX($R$1:R86)+1,\"\")","v":""},{"$f":"IF(ROWS($S$2:S87)>ROW(INDIRECT(ADDRESS(MAX(R:R),2))),\"\",INDEX(INDIRECT(\"$M$2\"&\":$M$\"&MATCH(MAX(R:R),R:R,0)),MATCH(ROWS($A$1:A86),INDIRECT(\"$R$2\"&\":$R$\"&MATCH(MAX(R:R),R:R,0)),0)))","v":""}]
[null,null,null,null,null,null,null,null,null,null,null,null,null,null,null,null,null,{"$f":"IF(COUNTIF($M$2:M88,M88)=1, MAX($R$1:R87)+1,\"\")","v":""},{"$f":"IF(ROWS($S$2:S88)>ROW(INDIRECT(ADDRESS(MAX(R:R),2))),\"\",INDEX(INDIRECT(\"$M$2\"&\":$M$\"&MATCH(MAX(R:R),R:R,0)),MATCH(ROWS($A$1:A87),INDIRECT(\"$R$2\"&\":$R$\"&MATCH(MAX(R:R),R:R,0)),0)))","v":""}]
[null,null,null,null,null,null,null,null,null,null,null,null,null,null,null,null,null,{"$f":"IF(COUNTIF($M$2:M89,M89)=1, MAX($R$1:R88)+1,\"\")","v":""},{"$f":"IF(ROWS($S$2:S89)>ROW(INDIRECT(ADDRESS(MAX(R:R),2))),\"\",INDEX(INDIRECT(\"$M$2\"&\":$M$\"&MATCH(MAX(R:R),R:R,0)),MATCH(ROWS($A$1:A88),INDIRECT(\"$R$2\"&\":$R$\"&MATCH(MAX(R:R),R:R,0)),0)))","v":""}]
[null,null,null,null,null,null,null,null,null,null,null,null,null,null,null,null,null,{"$f":"IF(COUNTIF($M$2:M90,M90)=1, MAX($R$1:R89)+1,\"\")","v":""},{"$f":"IF(ROWS($S$2:S90)>ROW(INDIRECT(ADDRESS(MAX(R:R),2))),\"\",INDEX(INDIRECT(\"$M$2\"&\":$M$\"&MATCH(MAX(R:R),R:R,0)),MATCH(ROWS($A$1:A89),INDIRECT(\"$R$2\"&\":$R$\"&MATCH(MAX(R:R),R:R,0)),0)))","v":""}]
[null,null,null,null,null,null,null,null,null,null,null,null,null,null,null,null,null,{"$f":"IF(COUNTIF($M$2:M91,M91)=1, MAX($R$1:R90)+1,\"\")","v":""},{"$f":"IF(ROWS($S$2:S91)>ROW(INDIRECT(ADDRESS(MAX(R:R),2))),\"\",INDEX(INDIRECT(\"$M$2\"&\":$M$\"&MATCH(MAX(R:R),R:R,0)),MATCH(ROWS($A$1:A90),INDIRECT(\"$R$2\"&\":$R$\"&MATCH(MAX(R:R),R:R,0)),0)))","v":""}]
[null,null,null,null,null,null,null,null,null,null,null,null,null,null,null,null,null,{"$f":"IF(COUNTIF($M$2:M92,M92)=1, MAX($R$1:R91)+1,\"\")","v":""},{"$f":"IF(ROWS($S$2:S92)>ROW(INDIRECT(ADDRESS(MAX(R:R),2))),\"\",INDEX(INDIRECT(\"$M$2\"&\":$M$\"&MATCH(MAX(R:R),R:R,0)),MATCH(ROWS($A$1:A91),INDIRECT(\"$R$2\"&\":$R$\"&MATCH(MAX(R:R),R:R,0)),0)))","v":""}]
[null,null,null,null,null,null,null,null,null,null,null,null,null,null,null,null,null,{"$f":"IF(COUNTIF($M$2:M93,M93)=1, MAX($R$1:R92)+1,\"\")","v":""},{"$f":"IF(ROWS($S$2:S93)>ROW(INDIRECT(ADDRESS(MAX(R:R),2))),\"\",INDEX(INDIRECT(\"$M$2\"&\":$M$\"&MATCH(MAX(R:R),R:R,0)),MATCH(ROWS($A$1:A92),INDIRECT(\"$R$2\"&\":$R$\"&MATCH(MAX(R:R),R:R,0)),0)))","v":""}]
[null,null,null,null,null,null,null,null,null,null,null,null,null,null,null,null,null,{"$f":"IF(COUNTIF($M$2:M94,M94)=1, MAX($R$1:R93)+1,\"\")","v":""},{"$f":"IF(ROWS($S$2:S94)>ROW(INDIRECT(ADDRESS(MAX(R:R),2))),\"\",INDEX(INDIRECT(\"$M$2\"&\":$M$\"&MATCH(MAX(R:R),R:R,0)),MATCH(ROWS($A$1:A93),INDIRECT(\"$R$2\"&\":$R$\"&MATCH(MAX(R:R),R:R,0)),0)))","v":""}]
[null,null,null,null,null,null,null,null,null,null,null,null,null,null,null,null,null,{"$f":"IF(COUNTIF($M$2:M95,M95)=1, MAX($R$1:R94)+1,\"\")","v":""},{"$f":"IF(ROWS($S$2:S95)>ROW(INDIRECT(ADDRESS(MAX(R:R),2))),\"\",INDEX(INDIRECT(\"$M$2\"&\":$M$\"&MATCH(MAX(R:R),R:R,0)),MATCH(ROWS($A$1:A94),INDIRECT(\"$R$2\"&\":$R$\"&MATCH(MAX(R:R),R:R,0)),0)))","v":""}]
[null,null,null,null,null,null,null,null,null,null,null,null,null,null,null,null,null,{"$f":"IF(COUNTIF($M$2:M96,M96)=1, MAX($R$1:R95)+1,\"\")","v":""},{"$f":"IF(ROWS($S$2:S96)>ROW(INDIRECT(ADDRESS(MAX(R:R),2))),\"\",INDEX(INDIRECT(\"$M$2\"&\":$M$\"&MATCH(MAX(R:R),R:R,0)),MATCH(ROWS($A$1:A95),INDIRECT(\"$R$2\"&\":$R$\"&MATCH(MAX(R:R),R:R,0)),0)))","v":""}]
[null,null,null,null,null,null,null,null,null,null,null,null,null,null,null,null,null,{"$f":"IF(COUNTIF($M$2:M97,M97)=1, MAX($R$1:R96)+1,\"\")","v":""},{"$f":"IF(ROWS($S$2:S97)>ROW(INDIRECT(ADDRESS(MAX(R:R),2))),\"\",INDEX(INDIRECT(\"$M$2\"&\":$M$\"&MATCH(MAX(R:R),R:R,0)),MATCH(ROWS($A$1:A96),INDIRECT(\"$R$2\"&\":$R$\"&MATCH(MAX(R:R),R:R,0)),0)))","v":""}]
[null,null,null,null,null,null,null,null,null,null,null,null,null,null,null,null,null,{"$f":"IF(COUNTIF($M$2:M98,M98)=1, MAX($R$1:R97)+1,\"\")","v":""},{"$f":"IF(ROWS($S$2:S98)>ROW(INDIRECT(ADDRESS(MAX(R:R),2))),\"\",INDEX(INDIRECT(\"$M$2\"&\":$M$\"&MATCH(MAX(R:R),R:R,0)),MATCH(ROWS($A$1:A97),INDIRECT(\"$R$2\"&\":$R$\"&MATCH(MAX(R:R),R:R,0)),0)))","v":""}]
[null,null,null,null,null,null,null,null,null,null,null,null,null,null,null,null,null,{"$f":"IF(COUNTIF($M$2:M99,M99)=1, MAX($R$1:R98)+1,\"\")","v":""},{"$f":"IF(ROWS($S$2:S99)>ROW(INDIRECT(ADDRESS(MAX(R:R),2))),\"\",INDEX(INDIRECT(\"$M$2\"&\":$M$\"&MATCH(MAX(R:R),R:R,0)),MATCH(ROWS($A$1:A98),INDIRECT(\"$R$2\"&\":$R$\"&MATCH(MAX(R:R),R:R,0)),0)))","v":""}]
[null,null,null,null,null,null,null,null,null,null,null,null,null,null,null,null,null,{"$f":"IF(COUNTIF($M$2:M100,M100)=1, MAX($R$1:R99)+1,\"\")","v":""},{"$f":"IF(ROWS($S$2:S100)>ROW(INDIRECT(ADDRESS(MAX(R:R),2))),\"\",INDEX(INDIRECT(\"$M$2\"&\":$M$\"&MATCH(MAX(R:R),R:R,0)),MATCH(ROWS($A$1:A99),INDIRECT(\"$R$2\"&\":$R$\"&MATCH(MAX(R:R),R:R,0)),0)))","v":""}]
[null,null,null,null,null,null,null,null,null,null,null,null,null,null,null,null,null,{"$f":"IF(COUNTIF($M$2:M101,M101)=1, MAX($R$1:R100)+1,\"\")","v":""},{"$f":"IF(ROWS($S$2:S101)>ROW(INDIRECT(ADDRESS(MAX(R:R),2))),\"\",INDEX(INDIRECT(\"$M$2\"&\":$M$\"&MATCH(MAX(R:R),R:R,0)),MATCH(ROWS($A$1:A100),INDIRECT(\"$R$2\"&\":$R$\"&MATCH(MAX(R:R),R:R,0)),0)))","v":""}]
[null,null,null,null,null,null,null,null,null,null,null,null,null,null,null,null,null,{"$f":"IF(COUNTIF($M$2:M102,M102)=1, MAX($R$1:R101)+1,\"\")","v":""},{"$f":"IF(ROWS($S$2:S102)>ROW(INDIRECT(ADDRESS(MAX(R:R),2))),\"\",INDEX(INDIRECT(\"$M$2\"&\":$M$\"&MATCH(MAX(R:R),R:R,0)),MATCH(ROWS($A$1:A101),INDIRECT(\"$R$2\"&\":$R$\"&MATCH(MAX(R:R),R:R,0)),0)))","v":""}]
[null,null,null,null,null,null,null,null,null,null,null,null,null,null,null,null,null,{"$f":"IF(COUNTIF($M$2:M103,M103)=1, MAX($R$1:R102)+1,\"\")","v":""},{"$f":"IF(ROWS($S$2:S103)>ROW(INDIRECT(ADDRESS(MAX(R:R),2))),\"\",INDEX(INDIRECT(\"$M$2\"&\":$M$\"&MATCH(MAX(R:R),R:R,0)),MATCH(ROWS($A$1:A102),INDIRECT(\"$R$2\"&\":$R$\"&MATCH(MAX(R:R),R:R,0)),0)))","v":""}]
[null,null,null,null,null,null,null,null,null,null,null,null,null,null,null,null,null,{"$f":"IF(COUNTIF($M$2:M104,M104)=1, MAX($R$1:R103)+1,\"\")","v":""},{"$f":"IF(ROWS($S$2:S104)>ROW(INDIRECT(ADDRESS(MAX(R:R),2))),\"\",INDEX(INDIRECT(\"$M$2\"&\":$M$\"&MATCH(MAX(R:R),R:R,0)),MATCH(ROWS($A$1:A103),INDIRECT(\"$R$2\"&\":$R$\"&MATCH(MAX(R:R),R:R,0)),0)))","v":""}]
[null,null,null,null,null,null,null,null,null,null,null,null,null,null,null,null,null,{"$f":"IF(COUNTIF($M$2:M105,M105)=1, MAX($R$1:R104)+1,\"\")","v":""},{"$f":"IF(ROWS($S$2:S105)>ROW(INDIRECT(ADDRESS(MAX(R:R),2))),\"\",INDEX(INDIRECT(\"$M$2\"&\":$M$\"&MATCH(MAX(R:R),R:R,0)),MATCH(ROWS($A$1:A104),INDIRECT(\"$R$2\"&\":$R$\"&MATCH(MAX(R:R),R:R,0)),0)))","v":""}]
[null,null,null,null,null,null,null,null,null,null,null,null,null,null,null,null,null,{"$f":"IF(COUNTIF($M$2:M106,M106)=1, MAX($R$1:R105)+1,\"\")","v":""},{"$f":"IF(ROWS($S$2:S106)>ROW(INDIRECT(ADDRESS(MAX(R:R),2))),\"\",INDEX(INDIRECT(\"$M$2\"&\":$M$\"&MATCH(MAX(R:R),R:R,0)),MATCH(ROWS($A$1:A105),INDIRECT(\"$R$2\"&\":$R$\"&MATCH(MAX(R:R),R:R,0)),0)))","v":""}]
[null,null,null,null,null,null,null,null,null,null,null,null,null,null,null,null,null,{"$f":"IF(COUNTIF($M$2:M107,M107)=1, MAX($R$1:R106)+1,\"\")","v":""},{"$f":"IF(ROWS($S$2:S107)>ROW(INDIRECT(ADDRESS(MAX(R:R),2))),\"\",INDEX(INDIRECT(\"$M$2\"&\":$M$\"&MATCH(MAX(R:R),R:R,0)),MATCH(ROWS($A$1:A106),INDIRECT(\"$R$2\"&\":$R$\"&MATCH(MAX(R:R),R:R,0)),0)))","v":""}]
[null,null,null,null,null,null,null,null,null,null,null,null,null,null,null,null,null,{"$f":"IF(COUNTIF($M$2:M108,M108)=1, MAX($R$1:R107)+1,\"\")","v":""},{"$f":"IF(ROWS($S$2:S108)>ROW(INDIRECT(ADDRESS(MAX(R:R),2))),\"\",INDEX(INDIRECT(\"$M$2\"&\":$M$\"&MATCH(MAX(R:R),R:R,0)),MATCH(ROWS($A$1:A107),INDIRECT(\"$R$2\"&\":$R$\"&MATCH(MAX(R:R),R:R,0)),0)))","v":""}]
[null,null,null,null,null,null,null,null,null,null,null,null,null,null,null,null,null,{"$f":"IF(COUNTIF($M$2:M109,M109)=1, MAX($R$1:R108)+1,\"\")","v":""},{"$f":"IF(ROWS($S$2:S109)>ROW(INDIRECT(ADDRESS(MAX(R:R),2))),\"\",INDEX(INDIRECT(\"$M$2\"&\":$M$\"&MATCH(MAX(R:R),R:R,0)),MATCH(ROWS($A$1:A108),INDIRECT(\"$R$2\"&\":$R$\"&MATCH(MAX(R:R),R:R,0)),0)))","v":""}]
[null,null,null,null,null,null,null,null,null,null,null,null,null,null,null,null,null,{"$f":"IF(COUNTIF($M$2:M110,M110)=1, MAX($R$1:R109)+1,\"\")","v":""},{"$f":"IF(ROWS($S$2:S110)>ROW(INDIRECT(ADDRESS(MAX(R:R),2))),\"\",INDEX(INDIRECT(\"$M$2\"&\":$M$\"&MATCH(MAX(R:R),R:R,0)),MATCH(ROWS($A$1:A109),INDIRECT(\"$R$2\"&\":$R$\"&MATCH(MAX(R:R),R:R,0)),0)))","v":""}]
[null,null,null,null,null,null,null,null,null,null,null,null,null,null,null,null,null,{"$f":"IF(COUNTIF($M$2:M111,M111)=1, MAX($R$1:R110)+1,\"\")","v":""},{"$f":"IF(ROWS($S$2:S111)>ROW(INDIRECT(ADDRESS(MAX(R:R),2))),\"\",INDEX(INDIRECT(\"$M$2\"&\":$M$\"&MATCH(MAX(R:R),R:R,0)),MATCH(ROWS($A$1:A110),INDIRECT(\"$R$2\"&\":$R$\"&MATCH(MAX(R:R),R:R,0)),0)))","v":""}]
[null,null,null,null,null,null,null,null,null,null,null,null,null,null,null,null,null,{"$f":"IF(COUNTIF($M$2:M112,M112)=1, MAX($R$1:R111)+1,\"\")","v":""},{"$f":"IF(ROWS($S$2:S112)>ROW(INDIRECT(ADDRESS(MAX(R:R),2))),\"\",INDEX(INDIRECT(\"$M$2\"&\":$M$\"&MATCH(MAX(R:R),R:R,0)),MATCH(ROWS($A$1:A111),INDIRECT(\"$R$2\"&\":$R$\"&MATCH(MAX(R:R),R:R,0)),0)))","v":""}]
[null,null,null,null,null,null,null,null,null,null,null,null,null,null,null,null,null,{"$f":"IF(COUNTIF($M$2:M113,M113)=1, MAX($R$1:R112)+1,\"\")","v":""},{"$f":"IF(ROWS($S$2:S113)>ROW(INDIRECT(ADDRESS(MAX(R:R),2))),\"\",INDEX(INDIRECT(\"$M$2\"&\":$M$\"&MATCH(MAX(R:R),R:R,0)),MATCH(ROWS($A$1:A112),INDIRECT(\"$R$2\"&\":$R$\"&MATCH(MAX(R:R),R:R,0)),0)))","v":""}]
[null,null,null,null,null,null,null,null,null,null,null,null,null,null,null,null,null,{"$f":"IF(COUNTIF($M$2:M114,M114)=1, MAX($R$1:R113)+1,\"\")","v":""},{"$f":"IF(ROWS($S$2:S114)>ROW(INDIRECT(ADDRESS(MAX(R:R),2))),\"\",INDEX(INDIRECT(\"$M$2\"&\":$M$\"&MATCH(MAX(R:R),R:R,0)),MATCH(ROWS($A$1:A113),INDIRECT(\"$R$2\"&\":$R$\"&MATCH(MAX(R:R),R:R,0)),0)))","v":""}]
[null,null,null,null,null,null,null,null,null,null,null,null,null,null,null,null,null,{"$f":"IF(COUNTIF($M$2:M115,M115)=1, MAX($R$1:R114)+1,\"\")","v":""},{"$f":"IF(ROWS($S$2:S115)>ROW(INDIRECT(ADDRESS(MAX(R:R),2))),\"\",INDEX(INDIRECT(\"$M$2\"&\":$M$\"&MATCH(MAX(R:R),R:R,0)),MATCH(ROWS($A$1:A114),INDIRECT(\"$R$2\"&\":$R$\"&MATCH(MAX(R:R),R:R,0)),0)))","v":""}]
[null,null,null,null,null,null,null,null,null,null,null,null,null,null,null,null,null,{"$f":"IF(COUNTIF($M$2:M116,M116)=1, MAX($R$1:R115)+1,\"\")","v":""},{"$f":"IF(ROWS($S$2:S116)>ROW(INDIRECT(ADDRESS(MAX(R:R),2))),\"\",INDEX(INDIRECT(\"$M$2\"&\":$M$\"&MATCH(MAX(R:R),R:R,0)),MATCH(ROWS($A$1:A115),INDIRECT(\"$R$2\"&\":$R$\"&MATCH(MAX(R:R),R:R,0)),0)))","v":""}]
[null,null,null,null,null,null,null,null,null,null,null,null,null,null,null,null,null,{"$f":"IF(COUNTIF($M$2:M117,M117)=1, MAX($R$1:R116)+1,\"\")","v":""},{"$f":"IF(ROWS($S$2:S117)>ROW(INDIRECT(ADDRESS(MAX(R:R),2))),\"\",INDEX(INDIRECT(\"$M$2\"&\":$M$\"&MATCH(MAX(R:R),R:R,0)),MATCH(ROWS($A$1:A116),INDIRECT(\"$R$2\"&\":$R$\"&MATCH(MAX(R:R),R:R,0)),0)))","v":""}]
[null,null,null,null,null,null,null,null,null,null,null,null,null,null,null,null,null,{"$f":"IF(COUNTIF($M$2:M118,M118)=1, MAX($R$1:R117)+1,\"\")","v":""},{"$f":"IF(ROWS($S$2:S118)>ROW(INDIRECT(ADDRESS(MAX(R:R),2))),\"\",INDEX(INDIRECT(\"$M$2\"&\":$M$\"&MATCH(MAX(R:R),R:R,0)),MATCH(ROWS($A$1:A117),INDIRECT(\"$R$2\"&\":$R$\"&MATCH(MAX(R:R),R:R,0)),0)))","v":""}]
[null,null,null,null,null,null,null,null,null,null,null,null,null,null,null,null,null,{"$f":"IF(COUNTIF($M$2:M119,M119)=1, MAX($R$1:R118)+1,\"\")","v":""},{"$f":"IF(ROWS($S$2:S119)>ROW(INDIRECT(ADDRESS(MAX(R:R),2))),\"\",INDEX(INDIRECT(\"$M$2\"&\":$M$\"&MATCH(MAX(R:R),R:R,0)),MATCH(ROWS($A$1:A118),INDIRECT(\"$R$2\"&\":$R$\"&MATCH(MAX(R:R),R:R,0)),0)))","v":""}]
[null,null,null,null,null,null,null,null,null,null,null,null,null,null,null,null,null,{"$f":"IF(COUNTIF($M$2:M120,M120)=1, MAX($R$1:R119)+1,\"\")","v":""},{"$f":"IF(ROWS($S$2:S120)>ROW(INDIRECT(ADDRESS(MAX(R:R),2))),\"\",INDEX(INDIRECT(\"$M$2\"&\":$M$\"&MATCH(MAX(R:R),R:R,0)),MATCH(ROWS($A$1:A119),INDIRECT(\"$R$2\"&\":$R$\"&MATCH(MAX(R:R),R:R,0)),0)))","v":""}]
[null,null,null,null,null,null,null,null,null,null,null,null,null,null,null,null,null,{"$f":"IF(COUNTIF($M$2:M121,M121)=1, MAX($R$1:R120)+1,\"\")","v":""},{"$f":"IF(ROWS($S$2:S121)>ROW(INDIRECT(ADDRESS(MAX(R:R),2))),\"\",INDEX(INDIRECT(\"$M$2\"&\":$M$\"&MATCH(MAX(R:R),R:R,0)),MATCH(ROWS($A$1:A120),INDIRECT(\"$R$2\"&\":$R$\"&MATCH(MAX(R:R),R:R,0)),0)))","v":""}]
[null,null,null,null,null,null,null,null,null,null,null,null,null,null,null,null,null,{"$f":"IF(COUNTIF($M$2:M122,M122)=1, MAX($R$1:R121)+1,\"\")","v":""},{"$f":"IF(ROWS($S$2:S122)>ROW(INDIRECT(ADDRESS(MAX(R:R),2))),\"\",INDEX(INDIRECT(\"$M$2\"&\":$M$\"&MATCH(MAX(R:R),R:R,0)),MATCH(ROWS($A$1:A121),INDIRECT(\"$R$2\"&\":$R$\"&MATCH(MAX(R:R),R:R,0)),0)))","v":""}]
[null,null,null,null,null,null,null,null,null,null,null,null,null,null,null,null,null,{"$f":"IF(COUNTIF($M$2:M123,M123)=1, MAX($R$1:R122)+1,\"\")","v":""},{"$f":"IF(ROWS($S$2:S123)>ROW(INDIRECT(ADDRESS(MAX(R:R),2))),\"\",INDEX(INDIRECT(\"$M$2\"&\":$M$\"&MATCH(MAX(R:R),R:R,0)),MATCH(ROWS($A$1:A122),INDIRECT(\"$R$2\"&\":$R$\"&MATCH(MAX(R:R),R:R,0)),0)))","v":""}]
[null,null,null,null,null,null,null,null,null,null,null,null,null,null,null,null,null,{"$f":"IF(COUNTIF($M$2:M124,M124)=1, MAX($R$1:R123)+1,\"\")","v":""},{"$f":"IF(ROWS($S$2:S124)>ROW(INDIRECT(ADDRESS(MAX(R:R),2))),\"\",INDEX(INDIRECT(\"$M$2\"&\":$M$\"&MATCH(MAX(R:R),R:R,0)),MATCH(ROWS($A$1:A123),INDIRECT(\"$R$2\"&\":$R$\"&MATCH(MAX(R:R),R:R,0)),0)))","v":""}]
[null,null,null,null,null,null,null,null,null,null,null,null,null,null,null,null,null,{"$f":"IF(COUNTIF($M$2:M125,M125)=1, MAX($R$1:R124)+1,\"\")","v":""},{"$f":"IF(ROWS($S$2:S125)>ROW(INDIRECT(ADDRESS(MAX(R:R),2))),\"\",INDEX(INDIRECT(\"$M$2\"&\":$M$\"&MATCH(MAX(R:R),R:R,0)),MATCH(ROWS($A$1:A124),INDIRECT(\"$R$2\"&\":$R$\"&MATCH(MAX(R:R),R:R,0)),0)))","v":""}]
[null,null,null,null,null,null,null,null,null,null,null,null,null,null,null,null,null,{"$f":"IF(COUNTIF($M$2:M126,M126)=1, MAX($R$1:R125)+1,\"\")","v":""},{"$f":"IF(ROWS($S$2:S126)>ROW(INDIRECT(ADDRESS(MAX(R:R),2))),\"\",INDEX(INDIRECT(\"$M$2\"&\":$M$\"&MATCH(MAX(R:R),R:R,0)),MATCH(ROWS($A$1:A125),INDIRECT(\"$R$2\"&\":$R$\"&MATCH(MAX(R:R),R:R,0)),0)))","v":""}]
[null,null,null,null,null,null,null,null,null,null,null,null,null,null,null,null,null,{"$f":"IF(COUNTIF($M$2:M127,M127)=1, MAX($R$1:R126)+1,\"\")","v":""},{"$f":"IF(ROWS($S$2:S127)>ROW(INDIRECT(ADDRESS(MAX(R:R),2))),\"\",INDEX(INDIRECT(\"$M$2\"&\":$M$\"&MATCH(MAX(R:R),R:R,0)),MATCH(ROWS($A$1:A126),INDIRECT(\"$R$2\"&\":$R$\"&MATCH(MAX(R:R),R:R,0)),0)))","v":""}]
[null,null,null,null,null,null,null,null,null,null,null,null,null,null,null,null,null,{"$f":"IF(COUNTIF($M$2:M128,M128)=1, MAX($R$1:R127)+1,\"\")","v":""},{"$f":"IF(ROWS($S$2:S128)>ROW(INDIRECT(ADDRESS(MAX(R:R),2))),\"\",INDEX(INDIRECT(\"$M$2\"&\":$M$\"&MATCH(MAX(R:R),R:R,0)),MATCH(ROWS($A$1:A127),INDIRECT(\"$R$2\"&\":$R$\"&MATCH(MAX(R:R),R:R,0)),0)))","v":""}]
[null,null,null,null,null,null,null,null,null,null,null,null,null,null,null,null,null,{"$f":"IF(COUNTIF($M$2:M129,M129)=1, MAX($R$1:R128)+1,\"\")","v":""},{"$f":"IF(ROWS($S$2:S129)>ROW(INDIRECT(ADDRESS(MAX(R:R),2))),\"\",INDEX(INDIRECT(\"$M$2\"&\":$M$\"&MATCH(MAX(R:R),R:R,0)),MATCH(ROWS($A$1:A128),INDIRECT(\"$R$2\"&\":$R$\"&MATCH(MAX(R:R),R:R,0)),0)))","v":""}]
[null,null,null,null,null,null,null,null,null,null,null,null,null,null,null,null,null,{"$f":"IF(COUNTIF($M$2:M130,M130)=1, MAX($R$1:R129)+1,\"\")","v":""},{"$f":"IF(ROWS($S$2:S130)>ROW(INDIRECT(ADDRESS(MAX(R:R),2))),\"\",INDEX(INDIRECT(\"$M$2\"&\":$M$\"&MATCH(MAX(R:R),R:R,0)),MATCH(ROWS($A$1:A129),INDIRECT(\"$R$2\"&\":$R$\"&MATCH(MAX(R:R),R:R,0)),0)))","v":""}]
[null,null,null,null,null,null,null,null,null,null,null,null,null,null,null,null,null,{"$f":"IF(COUNTIF($M$2:M131,M131)=1, MAX($R$1:R130)+1,\"\")","v":""},{"$f":"IF(ROWS($S$2:S131)>ROW(INDIRECT(ADDRESS(MAX(R:R),2))),\"\",INDEX(INDIRECT(\"$M$2\"&\":$M$\"&MATCH(MAX(R:R),R:R,0)),MATCH(ROWS($A$1:A130),INDIRECT(\"$R$2\"&\":$R$\"&MATCH(MAX(R:R),R:R,0)),0)))","v":""}]
[null,null,null,null,null,null,null,null,null,null,null,null,null,null,null,null,null,{"$f":"IF(COUNTIF($M$2:M132,M132)=1, MAX($R$1:R131)+1,\"\")","v":""},{"$f":"IF(ROWS($S$2:S132)>ROW(INDIRECT(ADDRESS(MAX(R:R),2))),\"\",INDEX(INDIRECT(\"$M$2\"&\":$M$\"&MATCH(MAX(R:R),R:R,0)),MATCH(ROWS($A$1:A131),INDIRECT(\"$R$2\"&\":$R$\"&MATCH(MAX(R:R),R:R,0)),0)))","v":""}]
[null,null,null,null,null,null,null,null,null,null,null,null,null,null,null,null,null,{"$f":"IF(COUNTIF($M$2:M133,M133)=1, MAX($R$1:R132)+1,\"\")","v":""},{"$f":"IF(ROWS($S$2:S133)>ROW(INDIRECT(ADDRESS(MAX(R:R),2))),\"\",INDEX(INDIRECT(\"$M$2\"&\":$M$\"&MATCH(MAX(R:R),R:R,0)),MATCH(ROWS($A$1:A132),INDIRECT(\"$R$2\"&\":$R$\"&MATCH(MAX(R:R),R:R,0)),0)))","v":""}]
[null,null,null,null,null,null,null,null,null,null,null,null,null,null,null,null,null,{"$f":"IF(COUNTIF($M$2:M134,M134)=1, MAX($R$1:R133)+1,\"\")","v":""},{"$f":"IF(ROWS($S$2:S134)>ROW(INDIRECT(ADDRESS(MAX(R:R),2))),\"\",INDEX(INDIRECT(\"$M$2\"&\":$M$\"&MATCH(MAX(R:R),R:R,0)),MATCH(ROWS($A$1:A133),INDIRECT(\"$R$2\"&\":$R$\"&MATCH(MAX(R:R),R:R,0)),0)))","v":""}]
[null,null,null,null,null,null,null,null,null,null,null,null,null,null,null,null,null,{"$f":"IF(COUNTIF($M$2:M135,M135)=1, MAX($R$1:R134)+1,\"\")","v":""},{"$f":"IF(ROWS($S$2:S135)>ROW(INDIRECT(ADDRESS(MAX(R:R),2))),\"\",INDEX(INDIRECT(\"$M$2\"&\":$M$\"&MATCH(MAX(R:R),R:R,0)),MATCH(ROWS($A$1:A134),INDIRECT(\"$R$2\"&\":$R$\"&MATCH(MAX(R:R),R:R,0)),0)))","v":""}]
[null,null,null,null,null,null,null,null,null,null,null,null,null,null,null,null,null,{"$f":"IF(COUNTIF($M$2:M136,M136)=1, MAX($R$1:R135)+1,\"\")","v":""},{"$f":"IF(ROWS($S$2:S136)>ROW(INDIRECT(ADDRESS(MAX(R:R),2))),\"\",INDEX(INDIRECT(\"$M$2\"&\":$M$\"&MATCH(MAX(R:R),R:R,0)),MATCH(ROWS($A$1:A135),INDIRECT(\"$R$2\"&\":$R$\"&MATCH(MAX(R:R),R:R,0)),0)))","v":""}]
[null,null,null,null,null,null,null,null,null,null,null,null,null,null,null,null,null,{"$f":"IF(COUNTIF($M$2:M137,M137)=1, MAX($R$1:R136)+1,\"\")","v":""},{"$f":"IF(ROWS($S$2:S137)>ROW(INDIRECT(ADDRESS(MAX(R:R),2))),\"\",INDEX(INDIRECT(\"$M$2\"&\":$M$\"&MATCH(MAX(R:R),R:R,0)),MATCH(ROWS($A$1:A136),INDIRECT(\"$R$2\"&\":$R$\"&MATCH(MAX(R:R),R:R,0)),0)))","v":""}]
[null,null,null,null,null,null,null,null,null,null,null,null,null,null,null,null,null,{"$f":"IF(COUNTIF($M$2:M138,M138)=1, MAX($R$1:R137)+1,\"\")","v":""},{"$f":"IF(ROWS($S$2:S138)>ROW(INDIRECT(ADDRESS(MAX(R:R),2))),\"\",INDEX(INDIRECT(\"$M$2\"&\":$M$\"&MATCH(MAX(R:R),R:R,0)),MATCH(ROWS($A$1:A137),INDIRECT(\"$R$2\"&\":$R$\"&MATCH(MAX(R:R),R:R,0)),0)))","v":""}]
[null,null,null,null,null,null,null,null,null,null,null,null,null,null,null,null,null,{"$f":"IF(COUNTIF($M$2:M139,M139)=1, MAX($R$1:R138)+1,\"\")","v":""},{"$f":"IF(ROWS($S$2:S139)>ROW(INDIRECT(ADDRESS(MAX(R:R),2))),\"\",INDEX(INDIRECT(\"$M$2\"&\":$M$\"&MATCH(MAX(R:R),R:R,0)),MATCH(ROWS($A$1:A138),INDIRECT(\"$R$2\"&\":$R$\"&MATCH(MAX(R:R),R:R,0)),0)))","v":""}]
[null,null,null,null,null,null,null,null,null,null,null,null,null,null,null,null,null,{"$f":"IF(COUNTIF($M$2:M140,M140)=1, MAX($R$1:R139)+1,\"\")","v":""},{"$f":"IF(ROWS($S$2:S140)>ROW(INDIRECT(ADDRESS(MAX(R:R),2))),\"\",INDEX(INDIRECT(\"$M$2\"&\":$M$\"&MATCH(MAX(R:R),R:R,0)),MATCH(ROWS($A$1:A139),INDIRECT(\"$R$2\"&\":$R$\"&MATCH(MAX(R:R),R:R,0)),0)))","v":""}]
[null,null,null,null,null,null,null,null,null,null,null,null,null,null,null,null,null,{"$f":"IF(COUNTIF($M$2:M141,M141)=1, MAX($R$1:R140)+1,\"\")","v":""},{"$f":"IF(ROWS($S$2:S141)>ROW(INDIRECT(ADDRESS(MAX(R:R),2))),\"\",INDEX(INDIRECT(\"$M$2\"&\":$M$\"&MATCH(MAX(R:R),R:R,0)),MATCH(ROWS($A$1:A140),INDIRECT(\"$R$2\"&\":$R$\"&MATCH(MAX(R:R),R:R,0)),0)))","v":""}]
[null,null,null,null,null,null,null,null,null,null,null,null,null,null,null,null,null,{"$f":"IF(COUNTIF($M$2:M142,M142)=1, MAX($R$1:R141)+1,\"\")","v":""},{"$f":"IF(ROWS($S$2:S142)>ROW(INDIRECT(ADDRESS(MAX(R:R),2))),\"\",INDEX(INDIRECT(\"$M$2\"&\":$M$\"&MATCH(MAX(R:R),R:R,0)),MATCH(ROWS($A$1:A141),INDIRECT(\"$R$2\"&\":$R$\"&MATCH(MAX(R:R),R:R,0)),0)))","v":""}]
[null,null,null,null,null,null,null,null,null,null,null,null,null,null,null,null,null,{"$f":"IF(COUNTIF($M$2:M143,M143)=1, MAX($R$1:R142)+1,\"\")","v":""},{"$f":"IF(ROWS($S$2:S143)>ROW(INDIRECT(ADDRESS(MAX(R:R),2))),\"\",INDEX(INDIRECT(\"$M$2\"&\":$M$\"&MATCH(MAX(R:R),R:R,0)),MATCH(ROWS($A$1:A142),INDIRECT(\"$R$2\"&\":$R$\"&MATCH(MAX(R:R),R:R,0)),0)))","v":""}]
[null,null,null,null,null,null,null,null,null,null,null,null,null,null,null,null,null,{"$f":"IF(COUNTIF($M$2:M144,M144)=1, MAX($R$1:R143)+1,\"\")","v":""},{"$f":"IF(ROWS($S$2:S144)>ROW(INDIRECT(ADDRESS(MAX(R:R),2))),\"\",INDEX(INDIRECT(\"$M$2\"&\":$M$\"&MATCH(MAX(R:R),R:R,0)),MATCH(ROWS($A$1:A143),INDIRECT(\"$R$2\"&\":$R$\"&MATCH(MAX(R:R),R:R,0)),0)))","v":""}]
[null,null,null,null,null,null,null,null,null,null,null,null,null,null,null,null,null,{"$f":"IF(COUNTIF($M$2:M145,M145)=1, MAX($R$1:R144)+1,\"\")","v":""},{"$f":"IF(ROWS($S$2:S145)>ROW(INDIRECT(ADDRESS(MAX(R:R),2))),\"\",INDEX(INDIRECT(\"$M$2\"&\":$M$\"&MATCH(MAX(R:R),R:R,0)),MATCH(ROWS($A$1:A144),INDIRECT(\"$R$2\"&\":$R$\"&MATCH(MAX(R:R),R:R,0)),0)))","v":""}]
[null,null,null,null,null,null,null,null,null,null,null,null,null,null,null,null,null,{"$f":"IF(COUNTIF($M$2:M146,M146)=1, MAX($R$1:R145)+1,\"\")","v":""},{"$f":"IF(ROWS($S$2:S146)>ROW(INDIRECT(ADDRESS(MAX(R:R),2))),\"\",INDEX(INDIRECT(\"$M$2\"&\":$M$\"&MATCH(MAX(R:R),R:R,0)),MATCH(ROWS($A$1:A145),INDIRECT(\"$R$2\"&\":$R$\"&MATCH(MAX(R:R),R:R,0)),0)))","v":""}]
[null,null,null,null,null,null,null,null,null,null,null,null,null,null,null,null,null,{"$f":"IF(COUNTIF($M$2:M147,M147)=1, MAX($R$1:R146)+1,\"\")","v":""},{"$f":"IF(ROWS($S$2:S147)>ROW(INDIRECT(ADDRESS(MAX(R:R),2))),\"\",INDEX(INDIRECT(\"$M$2\"&\":$M$\"&MATCH(MAX(R:R),R:R,0)),MATCH(ROWS($A$1:A146),INDIRECT(\"$R$2\"&\":$R$\"&MATCH(MAX(R:R),R:R,0)),0)))","v":""}]
[null,null,null,null,null,null,null,null,null,null,null,null,null,null,null,null,null,{"$f":"IF(COUNTIF($M$2:M148,M148)=1, MAX($R$1:R147)+1,\"\")","v":""},{"$f":"IF(ROWS($S$2:S148)>ROW(INDIRECT(ADDRESS(MAX(R:R),2))),\"\",INDEX(INDIRECT(\"$M$2\"&\":$M$\"&MATCH(MAX(R:R),R:R,0)),MATCH(ROWS($A$1:A147),INDIRECT(\"$R$2\"&\":$R$\"&MATCH(MAX(R:R),R:R,0)),0)))","v":""}]
[null,null,null,null,null,null,null,null,null,null,null,null,null,null,null,null,null,{"$f":"IF(COUNTIF($M$2:M149,M149)=1, MAX($R$1:R148)+1,\"\")","v":""},{"$f":"IF(ROWS($S$2:S149)>ROW(INDIRECT(ADDRESS(MAX(R:R),2))),\"\",INDEX(INDIRECT(\"$M$2\"&\":$M$\"&MATCH(MAX(R:R),R:R,0)),MATCH(ROWS($A$1:A148),INDIRECT(\"$R$2\"&\":$R$\"&MATCH(MAX(R:R),R:R,0)),0)))","v":""}]
[null,null,null,null,null,null,null,null,null,null,null,null,null,null,null,null,null,{"$f":"IF(COUNTIF($M$2:M150,M150)=1, MAX($R$1:R149)+1,\"\")","v":""},{"$f":"IF(ROWS($S$2:S150)>ROW(INDIRECT(ADDRESS(MAX(R:R),2))),\"\",INDEX(INDIRECT(\"$M$2\"&\":$M$\"&MATCH(MAX(R:R),R:R,0)),MATCH(ROWS($A$1:A149),INDIRECT(\"$R$2\"&\":$R$\"&MATCH(MAX(R:R),R:R,0)),0)))","v":""}]
[null,null,null,null,null,null,null,null,null,null,null,null,null,null,null,null,null,{"$f":"IF(COUNTIF($M$2:M151,M151)=1, MAX($R$1:R150)+1,\"\")","v":""},{"$f":"IF(ROWS($S$2:S151)>ROW(INDIRECT(ADDRESS(MAX(R:R),2))),\"\",INDEX(INDIRECT(\"$M$2\"&\":$M$\"&MATCH(MAX(R:R),R:R,0)),MATCH(ROWS($A$1:A150),INDIRECT(\"$R$2\"&\":$R$\"&MATCH(MAX(R:R),R:R,0)),0)))","v":""}]
[null,null,null,null,null,null,null,null,null,null,null,null,null,null,null,null,null,{"$f":"IF(COUNTIF($M$2:M152,M152)=1, MAX($R$1:R151)+1,\"\")","v":""},{"$f":"IF(ROWS($S$2:S152)>ROW(INDIRECT(ADDRESS(MAX(R:R),2))),\"\",INDEX(INDIRECT(\"$M$2\"&\":$M$\"&MATCH(MAX(R:R),R:R,0)),MATCH(ROWS($A$1:A151),INDIRECT(\"$R$2\"&\":$R$\"&MATCH(MAX(R:R),R:R,0)),0)))","v":""}]
[null,null,null,null,null,null,null,null,null,null,null,null,null,null,null,null,null,{"$f":"IF(COUNTIF($M$2:M153,M153)=1, MAX($R$1:R152)+1,\"\")","v":""},{"$f":"IF(ROWS($S$2:S153)>ROW(INDIRECT(ADDRESS(MAX(R:R),2))),\"\",INDEX(INDIRECT(\"$M$2\"&\":$M$\"&MATCH(MAX(R:R),R:R,0)),MATCH(ROWS($A$1:A152),INDIRECT(\"$R$2\"&\":$R$\"&MATCH(MAX(R:R),R:R,0)),0)))","v":""}]
[null,null,null,null,null,null,null,null,null,null,null,null,null,null,null,null,null,{"$f":"IF(COUNTIF($M$2:M154,M154)=1, MAX($R$1:R153)+1,\"\")","v":""},{"$f":"IF(ROWS($S$2:S154)>ROW(INDIRECT(ADDRESS(MAX(R:R),2))),\"\",INDEX(INDIRECT(\"$M$2\"&\":$M$\"&MATCH(MAX(R:R),R:R,0)),MATCH(ROWS($A$1:A153),INDIRECT(\"$R$2\"&\":$R$\"&MATCH(MAX(R:R),R:R,0)),0)))","v":""}]
[null,null,null,null,null,null,null,null,null,null,null,null,null,null,null,null,null,{"$f":"IF(COUNTIF($M$2:M155,M155)=1, MAX($R$1:R154)+1,\"\")","v":""},{"$f":"IF(ROWS($S$2:S155)>ROW(INDIRECT(ADDRESS(MAX(R:R),2))),\"\",INDEX(INDIRECT(\"$M$2\"&\":$M$\"&MATCH(MAX(R:R),R:R,0)),MATCH(ROWS($A$1:A154),INDIRECT(\"$R$2\"&\":$R$\"&MATCH(MAX(R:R),R:R,0)),0)))","v":""}]
[null,null,null,null,null,null,null,null,null,null,null,null,null,null,null,null,null,{"$f":"IF(COUNTIF($M$2:M156,M156)=1, MAX($R$1:R155)+1,\"\")","v":""},{"$f":"IF(ROWS($S$2:S156)>ROW(INDIRECT(ADDRESS(MAX(R:R),2))),\"\",INDEX(INDIRECT(\"$M$2\"&\":$M$\"&MATCH(MAX(R:R),R:R,0)),MATCH(ROWS($A$1:A155),INDIRECT(\"$R$2\"&\":$R$\"&MATCH(MAX(R:R),R:R,0)),0)))","v":""}]
[null,null,null,null,null,null,null,null,null,null,null,null,null,null,null,null,null,{"$f":"IF(COUNTIF($M$2:M157,M157)=1, MAX($R$1:R156)+1,\"\")","v":""},{"$f":"IF(ROWS($S$2:S157)>ROW(INDIRECT(ADDRESS(MAX(R:R),2))),\"\",INDEX(INDIRECT(\"$M$2\"&\":$M$\"&MATCH(MAX(R:R),R:R,0)),MATCH(ROWS($A$1:A156),INDIRECT(\"$R$2\"&\":$R$\"&MATCH(MAX(R:R),R:R,0)),0)))","v":""}]
[null,null,null,null,null,null,null,null,null,null,null,null,null,null,null,null,null,{"$f":"IF(COUNTIF($M$2:M158,M158)=1, MAX($R$1:R157)+1,\"\")","v":""},{"$f":"IF(ROWS($S$2:S158)>ROW(INDIRECT(ADDRESS(MAX(R:R),2))),\"\",INDEX(INDIRECT(\"$M$2\"&\":$M$\"&MATCH(MAX(R:R),R:R,0)),MATCH(ROWS($A$1:A157),INDIRECT(\"$R$2\"&\":$R$\"&MATCH(MAX(R:R),R:R,0)),0)))","v":""}]
[null,null,null,null,null,null,null,null,null,null,null,null,null,null,null,null,null,{"$f":"IF(COUNTIF($M$2:M159,M159)=1, MAX($R$1:R158)+1,\"\")","v":""},{"$f":"IF(ROWS($S$2:S159)>ROW(INDIRECT(ADDRESS(MAX(R:R),2))),\"\",INDEX(INDIRECT(\"$M$2\"&\":$M$\"&MATCH(MAX(R:R),R:R,0)),MATCH(ROWS($A$1:A158),INDIRECT(\"$R$2\"&\":$R$\"&MATCH(MAX(R:R),R:R,0)),0)))","v":""}]
[null,null,null,null,null,null,null,null,null,null,null,null,null,null,null,null,null,{"$f":"IF(COUNTIF($M$2:M160,M160)=1, MAX($R$1:R159)+1,\"\")","v":""},{"$f":"IF(ROWS($S$2:S160)>ROW(INDIRECT(ADDRESS(MAX(R:R),2))),\"\",INDEX(INDIRECT(\"$M$2\"&\":$M$\"&MATCH(MAX(R:R),R:R,0)),MATCH(ROWS($A$1:A159),INDIRECT(\"$R$2\"&\":$R$\"&MATCH(MAX(R:R),R:R,0)),0)))","v":""}]
[null,null,null,null,null,null,null,null,null,null,null,null,null,null,null,null,null,{"$f":"IF(COUNTIF($M$2:M161,M161)=1, MAX($R$1:R160)+1,\"\")","v":""},{"$f":"IF(ROWS($S$2:S161)>ROW(INDIRECT(ADDRESS(MAX(R:R),2))),\"\",INDEX(INDIRECT(\"$M$2\"&\":$M$\"&MATCH(MAX(R:R),R:R,0)),MATCH(ROWS($A$1:A160),INDIRECT(\"$R$2\"&\":$R$\"&MATCH(MAX(R:R),R:R,0)),0)))","v":""}]
[null,null,null,null,null,null,null,null,null,null,null,null,null,null,null,null,null,{"$f":"IF(COUNTIF($M$2:M162,M162)=1, MAX($R$1:R161)+1,\"\")","v":""},{"$f":"IF(ROWS($S$2:S162)>ROW(INDIRECT(ADDRESS(MAX(R:R),2))),\"\",INDEX(INDIRECT(\"$M$2\"&\":$M$\"&MATCH(MAX(R:R),R:R,0)),MATCH(ROWS($A$1:A161),INDIRECT(\"$R$2\"&\":$R$\"&MATCH(MAX(R:R),R:R,0)),0)))","v":""}]
[null,null,null,null,null,null,null,null,null,null,null,null,null,null,null,null,null,{"$f":"IF(COUNTIF($M$2:M163,M163)=1, MAX($R$1:R162)+1,\"\")","v":""},{"$f":"IF(ROWS($S$2:S163)>ROW(INDIRECT(ADDRESS(MAX(R:R),2))),\"\",INDEX(INDIRECT(\"$M$2\"&\":$M$\"&MATCH(MAX(R:R),R:R,0)),MATCH(ROWS($A$1:A162),INDIRECT(\"$R$2\"&\":$R$\"&MATCH(MAX(R:R),R:R,0)),0)))","v":""}]
[null,null,null,null,null,null,null,null,null,null,null,null,null,null,null,null,null,{"$f":"IF(COUNTIF($M$2:M164,M164)=1, MAX($R$1:R163)+1,\"\")","v":""},{"$f":"IF(ROWS($S$2:S164)>ROW(INDIRECT(ADDRESS(MAX(R:R),2))),\"\",INDEX(INDIRECT(\"$M$2\"&\":$M$\"&MATCH(MAX(R:R),R:R,0)),MATCH(ROWS($A$1:A163),INDIRECT(\"$R$2\"&\":$R$\"&MATCH(MAX(R:R),R:R,0)),0)))","v":""}]
[null,null,null,null,null,null,null,null,null,null,null,null,null,null,null,null,null,{"$f":"IF(COUNTIF($M$2:M165,M165)=1, MAX($R$1:R164)+1,\"\")","v":""},{"$f":"IF(ROWS($S$2:S165)>ROW(INDIRECT(ADDRESS(MAX(R:R),2))),\"\",INDEX(INDIRECT(\"$M$2\"&\":$M$\"&MATCH(MAX(R:R),R:R,0)),MATCH(ROWS($A$1:A164),INDIRECT(\"$R$2\"&\":$R$\"&MATCH(MAX(R:R),R:R,0)),0)))","v":""}]
[null,null,null,null,null,null,null,null,null,null,null,null,null,null,null,null,null,{"$f":"IF(COUNTIF($M$2:M166,M166)=1, MAX($R$1:R165)+1,\"\")","v":""},{"$f":"IF(ROWS($S$2:S166)>ROW(INDIRECT(ADDRESS(MAX(R:R),2))),\"\",INDEX(INDIRECT(\"$M$2\"&\":$M$\"&MATCH(MAX(R:R),R:R,0)),MATCH(ROWS($A$1:A165),INDIRECT(\"$R$2\"&\":$R$\"&MATCH(MAX(R:R),R:R,0)),0)))","v":""}]
[null,null,null,null,null,null,null,null,null,null,null,null,null,null,null,null,null,{"$f":"IF(COUNTIF($M$2:M167,M167)=1, MAX($R$1:R166)+1,\"\")","v":""},{"$f":"IF(ROWS($S$2:S167)>ROW(INDIRECT(ADDRESS(MAX(R:R),2))),\"\",INDEX(INDIRECT(\"$M$2\"&\":$M$\"&MATCH(MAX(R:R),R:R,0)),MATCH(ROWS($A$1:A166),INDIRECT(\"$R$2\"&\":$R$\"&MATCH(MAX(R:R),R:R,0)),0)))","v":""}]
[null,null,null,null,null,null,null,null,null,null,null,null,null,null,null,null,null,{"$f":"IF(COUNTIF($M$2:M168,M168)=1, MAX($R$1:R167)+1,\"\")","v":""},{"$f":"IF(ROWS($S$2:S168)>ROW(INDIRECT(ADDRESS(MAX(R:R),2))),\"\",INDEX(INDIRECT(\"$M$2\"&\":$M$\"&MATCH(MAX(R:R),R:R,0)),MATCH(ROWS($A$1:A167),INDIRECT(\"$R$2\"&\":$R$\"&MATCH(MAX(R:R),R:R,0)),0)))","v":""}]
[null,null,null,null,null,null,null,null,null,null,null,null,null,null,null,null,null,{"$f":"IF(COUNTIF($M$2:M169,M169)=1, MAX($R$1:R168)+1,\"\")","v":""},{"$f":"IF(ROWS($S$2:S169)>ROW(INDIRECT(ADDRESS(MAX(R:R),2))),\"\",INDEX(INDIRECT(\"$M$2\"&\":$M$\"&MATCH(MAX(R:R),R:R,0)),MATCH(ROWS($A$1:A168),INDIRECT(\"$R$2\"&\":$R$\"&MATCH(MAX(R:R),R:R,0)),0)))","v":""}]
[null,null,null,null,null,null,null,null,null,null,null,null,null,null,null,null,null,{"$f":"IF(COUNTIF($M$2:M170,M170)=1, MAX($R$1:R169)+1,\"\")","v":""},{"$f":"IF(ROWS($S$2:S170)>ROW(INDIRECT(ADDRESS(MAX(R:R),2))),\"\",INDEX(INDIRECT(\"$M$2\"&\":$M$\"&MATCH(MAX(R:R),R:R,0)),MATCH(ROWS($A$1:A169),INDIRECT(\"$R$2\"&\":$R$\"&MATCH(MAX(R:R),R:R,0)),0)))","v":""}]
[null,null,null,null,null,null,null,null,null,null,null,null,null,null,null,null,null,{"$f":"IF(COUNTIF($M$2:M171,M171)=1, MAX($R$1:R170)+1,\"\")","v":""},{"$f":"IF(ROWS($S$2:S171)>ROW(INDIRECT(ADDRESS(MAX(R:R),2))),\"\",INDEX(INDIRECT(\"$M$2\"&\":$M$\"&MATCH(MAX(R:R),R:R,0)),MATCH(ROWS($A$1:A170),INDIRECT(\"$R$2\"&\":$R$\"&MATCH(MAX(R:R),R:R,0)),0)))","v":""}]
[null,null,null,null,null,null,null,null,null,null,null,null,null,null,null,null,null,{"$f":"IF(COUNTIF($M$2:M172,M172)=1, MAX($R$1:R171)+1,\"\")","v":""},{"$f":"IF(ROWS($S$2:S172)>ROW(INDIRECT(ADDRESS(MAX(R:R),2))),\"\",INDEX(INDIRECT(\"$M$2\"&\":$M$\"&MATCH(MAX(R:R),R:R,0)),MATCH(ROWS($A$1:A171),INDIRECT(\"$R$2\"&\":$R$\"&MATCH(MAX(R:R),R:R,0)),0)))","v":""}]
[null,null,null,null,null,null,null,null,null,null,null,null,null,null,null,null,null,{"$f":"IF(COUNTIF($M$2:M173,M173)=1, MAX($R$1:R172)+1,\"\")","v":""},{"$f":"IF(ROWS($S$2:S173)>ROW(INDIRECT(ADDRESS(MAX(R:R),2))),\"\",INDEX(INDIRECT(\"$M$2\"&\":$M$\"&MATCH(MAX(R:R),R:R,0)),MATCH(ROWS($A$1:A172),INDIRECT(\"$R$2\"&\":$R$\"&MATCH(MAX(R:R),R:R,0)),0)))","v":""}]
[null,null,null,null,null,null,null,null,null,null,null,null,null,null,null,null,null,{"$f":"IF(COUNTIF($M$2:M174,M174)=1, MAX($R$1:R173)+1,\"\")","v":""},{"$f":"IF(ROWS($S$2:S174)>ROW(INDIRECT(ADDRESS(MAX(R:R),2))),\"\",INDEX(INDIRECT(\"$M$2\"&\":$M$\"&MATCH(MAX(R:R),R:R,0)),MATCH(ROWS($A$1:A173),INDIRECT(\"$R$2\"&\":$R$\"&MATCH(MAX(R:R),R:R,0)),0)))","v":""}]
[null,null,null,null,null,null,null,null,null,null,null,null,null,null,null,null,null,{"$f":"IF(COUNTIF($M$2:M175,M175)=1, MAX($R$1:R174)+1,\"\")","v":""},{"$f":"IF(ROWS($S$2:S175)>ROW(INDIRECT(ADDRESS(MAX(R:R),2))),\"\",INDEX(INDIRECT(\"$M$2\"&\":$M$\"&MATCH(MAX(R:R),R:R,0)),MATCH(ROWS($A$1:A174),INDIRECT(\"$R$2\"&\":$R$\"&MATCH(MAX(R:R),R:R,0)),0)))","v":""}]
[null,null,null,null,null,null,null,null,null,null,null,null,null,null,null,null,null,{"$f":"IF(COUNTIF($M$2:M176,M176)=1, MAX($R$1:R175)+1,\"\")","v":""},{"$f":"IF(ROWS($S$2:S176)>ROW(INDIRECT(ADDRESS(MAX(R:R),2))),\"\",INDEX(INDIRECT(\"$M$2\"&\":$M$\"&MATCH(MAX(R:R),R:R,0)),MATCH(ROWS($A$1:A175),INDIRECT(\"$R$2\"&\":$R$\"&MATCH(MAX(R:R),R:R,0)),0)))","v":""}]
[null,null,null,null,null,null,null,null,null,null,null,null,null,null,null,null,null,{"$f":"IF(COUNTIF($M$2:M177,M177)=1, MAX($R$1:R176)+1,\"\")","v":""},{"$f":"IF(ROWS($S$2:S177)>ROW(INDIRECT(ADDRESS(MAX(R:R),2))),\"\",INDEX(INDIRECT(\"$M$2\"&\":$M$\"&MATCH(MAX(R:R),R:R,0)),MATCH(ROWS($A$1:A176),INDIRECT(\"$R$2\"&\":$R$\"&MATCH(MAX(R:R),R:R,0)),0)))","v":""}]
[null,null,null,null,null,null,null,null,null,null,null,null,null,null,null,null,null,{"$f":"IF(COUNTIF($M$2:M178,M178)=1, MAX($R$1:R177)+1,\"\")","v":""},{"$f":"IF(ROWS($S$2:S178)>ROW(INDIRECT(ADDRESS(MAX(R:R),2))),\"\",INDEX(INDIRECT(\"$M$2\"&\":$M$\"&MATCH(MAX(R:R),R:R,0)),MATCH(ROWS($A$1:A177),INDIRECT(\"$R$2\"&\":$R$\"&MATCH(MAX(R:R),R:R,0)),0)))","v":""}]
[null,null,null,null,null,null,null,null,null,null,null,null,null,null,null,null,null,{"$f":"IF(COUNTIF($M$2:M179,M179)=1, MAX($R$1:R178)+1,\"\")","v":""},{"$f":"IF(ROWS($S$2:S179)>ROW(INDIRECT(ADDRESS(MAX(R:R),2))),\"\",INDEX(INDIRECT(\"$M$2\"&\":$M$\"&MATCH(MAX(R:R),R:R,0)),MATCH(ROWS($A$1:A178),INDIRECT(\"$R$2\"&\":$R$\"&MATCH(MAX(R:R),R:R,0)),0)))","v":""}]
[null,null,null,null,null,null,null,null,null,null,null,null,null,null,null,null,null,{"$f":"IF(COUNTIF($M$2:M180,M180)=1, MAX($R$1:R179)+1,\"\")","v":""},{"$f":"IF(ROWS($S$2:S180)>ROW(INDIRECT(ADDRESS(MAX(R:R),2))),\"\",INDEX(INDIRECT(\"$M$2\"&\":$M$\"&MATCH(MAX(R:R),R:R,0)),MATCH(ROWS($A$1:A179),INDIRECT(\"$R$2\"&\":$R$\"&MATCH(MAX(R:R),R:R,0)),0)))","v":""}]
[null,null,null,null,null,null,null,null,null,null,null,null,null,null,null,null,null,{"$f":"IF(COUNTIF($M$2:M181,M181)=1, MAX($R$1:R180)+1,\"\")","v":""},{"$f":"IF(ROWS($S$2:S181)>ROW(INDIRECT(ADDRESS(MAX(R:R),2))),\"\",INDEX(INDIRECT(\"$M$2\"&\":$M$\"&MATCH(MAX(R:R),R:R,0)),MATCH(ROWS($A$1:A180),INDIRECT(\"$R$2\"&\":$R$\"&MATCH(MAX(R:R),R:R,0)),0)))","v":""}]
[null,null,null,null,null,null,null,null,null,null,null,null,null,null,null,null,null,{"$f":"IF(COUNTIF($M$2:M182,M182)=1, MAX($R$1:R181)+1,\"\")","v":""},{"$f":"IF(ROWS($S$2:S182)>ROW(INDIRECT(ADDRESS(MAX(R:R),2))),\"\",INDEX(INDIRECT(\"$M$2\"&\":$M$\"&MATCH(MAX(R:R),R:R,0)),MATCH(ROWS($A$1:A181),INDIRECT(\"$R$2\"&\":$R$\"&MATCH(MAX(R:R),R:R,0)),0)))","v":""}]
[null,null,null,null,null,null,null,null,null,null,null,null,null,null,null,null,null,{"$f":"IF(COUNTIF($M$2:M183,M183)=1, MAX($R$1:R182)+1,\"\")","v":""},{"$f":"IF(ROWS($S$2:S183)>ROW(INDIRECT(ADDRESS(MAX(R:R),2))),\"\",INDEX(INDIRECT(\"$M$2\"&\":$M$\"&MATCH(MAX(R:R),R:R,0)),MATCH(ROWS($A$1:A182),INDIRECT(\"$R$2\"&\":$R$\"&MATCH(MAX(R:R),R:R,0)),0)))","v":""}]
[null,null,null,null,null,null,null,null,null,null,null,null,null,null,null,null,null,{"$f":"IF(COUNTIF($M$2:M184,M184)=1, MAX($R$1:R183)+1,\"\")","v":""},{"$f":"IF(ROWS($S$2:S184)>ROW(INDIRECT(ADDRESS(MAX(R:R),2))),\"\",INDEX(INDIRECT(\"$M$2\"&\":$M$\"&MATCH(MAX(R:R),R:R,0)),MATCH(ROWS($A$1:A183),INDIRECT(\"$R$2\"&\":$R$\"&MATCH(MAX(R:R),R:R,0)),0)))","v":""}]
[null,null,null,null,null,null,null,null,null,null,null,null,null,null,null,null,null,{"$f":"IF(COUNTIF($M$2:M185,M185)=1, MAX($R$1:R184)+1,\"\")","v":""},{"$f":"IF(ROWS($S$2:S185)>ROW(INDIRECT(ADDRESS(MAX(R:R),2))),\"\",INDEX(INDIRECT(\"$M$2\"&\":$M$\"&MATCH(MAX(R:R),R:R,0)),MATCH(ROWS($A$1:A184),INDIRECT(\"$R$2\"&\":$R$\"&MATCH(MAX(R:R),R:R,0)),0)))","v":""}]
[null,null,null,null,null,null,null,null,null,null,null,null,null,null,null,null,null,{"$f":"IF(COUNTIF($M$2:M186,M186)=1, MAX($R$1:R185)+1,\"\")","v":""},{"$f":"IF(ROWS($S$2:S186)>ROW(INDIRECT(ADDRESS(MAX(R:R),2))),\"\",INDEX(INDIRECT(\"$M$2\"&\":$M$\"&MATCH(MAX(R:R),R:R,0)),MATCH(ROWS($A$1:A185),INDIRECT(\"$R$2\"&\":$R$\"&MATCH(MAX(R:R),R:R,0)),0)))","v":""}]
[null,null,null,null,null,null,null,null,null,null,null,null,null,null,null,null,null,{"$f":"IF(COUNTIF($M$2:M187,M187)=1, MAX($R$1:R186)+1,\"\")","v":""},{"$f":"IF(ROWS($S$2:S187)>ROW(INDIRECT(ADDRESS(MAX(R:R),2))),\"\",INDEX(INDIRECT(\"$M$2\"&\":$M$\"&MATCH(MAX(R:R),R:R,0)),MATCH(ROWS($A$1:A186),INDIRECT(\"$R$2\"&\":$R$\"&MATCH(MAX(R:R),R:R,0)),0)))","v":""}]
[null,null,null,null,null,null,null,null,null,null,null,null,null,null,null,null,null,{"$f":"IF(COUNTIF($M$2:M188,M188)=1, MAX($R$1:R187)+1,\"\")","v":""},{"$f":"IF(ROWS($S$2:S188)>ROW(INDIRECT(ADDRESS(MAX(R:R),2))),\"\",INDEX(INDIRECT(\"$M$2\"&\":$M$\"&MATCH(MAX(R:R),R:R,0)),MATCH(ROWS($A$1:A187),INDIRECT(\"$R$2\"&\":$R$\"&MATCH(MAX(R:R),R:R,0)),0)))","v":""}]
[null,null,null,null,null,null,null,null,null,null,null,null,null,null,null,null,null,{"$f":"IF(COUNTIF($M$2:M189,M189)=1, MAX($R$1:R188)+1,\"\")","v":""},{"$f":"IF(ROWS($S$2:S189)>ROW(INDIRECT(ADDRESS(MAX(R:R),2))),\"\",INDEX(INDIRECT(\"$M$2\"&\":$M$\"&MATCH(MAX(R:R),R:R,0)),MATCH(ROWS($A$1:A188),INDIRECT(\"$R$2\"&\":$R$\"&MATCH(MAX(R:R),R:R,0)),0)))","v":""}]
[null,null,null,null,null,null,null,null,null,null,null,null,null,null,null,null,null,{"$f":"IF(COUNTIF($M$2:M190,M190)=1, MAX($R$1:R189)+1,\"\")","v":""},{"$f":"IF(ROWS($S$2:S190)>ROW(INDIRECT(ADDRESS(MAX(R:R),2))),\"\",INDEX(INDIRECT(\"$M$2\"&\":$M$\"&MATCH(MAX(R:R),R:R,0)),MATCH(ROWS($A$1:A189),INDIRECT(\"$R$2\"&\":$R$\"&MATCH(MAX(R:R),R:R,0)),0)))","v":""}]
[null,null,null,null,null,null,null,null,null,null,null,null,null,null,null,null,null,{"$f":"IF(COUNTIF($M$2:M191,M191)=1, MAX($R$1:R190)+1,\"\")","v":""},{"$f":"IF(ROWS($S$2:S191)>ROW(INDIRECT(ADDRESS(MAX(R:R),2))),\"\",INDEX(INDIRECT(\"$M$2\"&\":$M$\"&MATCH(MAX(R:R),R:R,0)),MATCH(ROWS($A$1:A190),INDIRECT(\"$R$2\"&\":$R$\"&MATCH(MAX(R:R),R:R,0)),0)))","v":""}]
[null,null,null,null,null,null,null,null,null,null,null,null,null,null,null,null,null,{"$f":"IF(COUNTIF($M$2:M192,M192)=1, MAX($R$1:R191)+1,\"\")","v":""},{"$f":"IF(ROWS($S$2:S192)>ROW(INDIRECT(ADDRESS(MAX(R:R),2))),\"\",INDEX(INDIRECT(\"$M$2\"&\":$M$\"&MATCH(MAX(R:R),R:R,0)),MATCH(ROWS($A$1:A191),INDIRECT(\"$R$2\"&\":$R$\"&MATCH(MAX(R:R),R:R,0)),0)))","v":""}]
[null,null,null,null,null,null,null,null,null,null,null,null,null,null,null,null,null,{"$f":"IF(COUNTIF($M$2:M193,M193)=1, MAX($R$1:R192)+1,\"\")","v":""},{"$f":"IF(ROWS($S$2:S193)>ROW(INDIRECT(ADDRESS(MAX(R:R),2))),\"\",INDEX(INDIRECT(\"$M$2\"&\":$M$\"&MATCH(MAX(R:R),R:R,0)),MATCH(ROWS($A$1:A192),INDIRECT(\"$R$2\"&\":$R$\"&MATCH(MAX(R:R),R:R,0)),0)))","v":""}]
[null,null,null,null,null,null,null,null,null,null,null,null,null,null,null,null,null,{"$f":"IF(COUNTIF($M$2:M194,M194)=1, MAX($R$1:R193)+1,\"\")","v":""},{"$f":"IF(ROWS($S$2:S194)>ROW(INDIRECT(ADDRESS(MAX(R:R),2))),\"\",INDEX(INDIRECT(\"$M$2\"&\":$M$\"&MATCH(MAX(R:R),R:R,0)),MATCH(ROWS($A$1:A193),INDIRECT(\"$R$2\"&\":$R$\"&MATCH(MAX(R:R),R:R,0)),0)))","v":""}]
[null,null,null,null,null,null,null,null,null,null,null,null,null,null,null,null,null,{"$f":"IF(COUNTIF($M$2:M195,M195)=1, MAX($R$1:R194)+1,\"\")","v":""},{"$f":"IF(ROWS($S$2:S195)>ROW(INDIRECT(ADDRESS(MAX(R:R),2))),\"\",INDEX(INDIRECT(\"$M$2\"&\":$M$\"&MATCH(MAX(R:R),R:R,0)),MATCH(ROWS($A$1:A194),INDIRECT(\"$R$2\"&\":$R$\"&MATCH(MAX(R:R),R:R,0)),0)))","v":""}]
[null,null,null,null,null,null,null,null,null,null,null,null,null,null,null,null,null,{"$f":"IF(COUNTIF($M$2:M196,M196)=1, MAX($R$1:R195)+1,\"\")","v":""},{"$f":"IF(ROWS($S$2:S196)>ROW(INDIRECT(ADDRESS(MAX(R:R),2))),\"\",INDEX(INDIRECT(\"$M$2\"&\":$M$\"&MATCH(MAX(R:R),R:R,0)),MATCH(ROWS($A$1:A195),INDIRECT(\"$R$2\"&\":$R$\"&MATCH(MAX(R:R),R:R,0)),0)))","v":""}]
[null,null,null,null,null,null,null,null,null,null,null,null,null,null,null,null,null,{"$f":"IF(COUNTIF($M$2:M197,M197)=1, MAX($R$1:R196)+1,\"\")","v":""},{"$f":"IF(ROWS($S$2:S197)>ROW(INDIRECT(ADDRESS(MAX(R:R),2))),\"\",INDEX(INDIRECT(\"$M$2\"&\":$M$\"&MATCH(MAX(R:R),R:R,0)),MATCH(ROWS($A$1:A196),INDIRECT(\"$R$2\"&\":$R$\"&MATCH(MAX(R:R),R:R,0)),0)))","v":""}]
[null,null,null,null,null,null,null,null,null,null,null,null,null,null,null,null,null,{"$f":"IF(COUNTIF($M$2:M198,M198)=1, MAX($R$1:R197)+1,\"\")","v":""},{"$f":"IF(ROWS($S$2:S198)>ROW(INDIRECT(ADDRESS(MAX(R:R),2))),\"\",INDEX(INDIRECT(\"$M$2\"&\":$M$\"&MATCH(MAX(R:R),R:R,0)),MATCH(ROWS($A$1:A197),INDIRECT(\"$R$2\"&\":$R$\"&MATCH(MAX(R:R),R:R,0)),0)))","v":""}]
[null,null,null,null,null,null,null,null,null,null,null,null,null,null,null,null,null,{"$f":"IF(COUNTIF($M$2:M199,M199)=1, MAX($R$1:R198)+1,\"\")","v":""}]
[null,null,null,null,null,null,null,null,null,null,null,null,null,null,null,null,null,{"$f":"IF(COUNTIF($M$2:M200,M200)=1, MAX($R$1:R199)+1,\"\")","v":""}]
[null,null,null,null,null,null,null,null,null,null,null,null,null,null,null,null,null,{"$f":"IF(COUNTIF($M$2:M201,M201)=1, MAX($R$1:R200)+1,\"\")","v":""}]
[null,null,null,null,null,null,null,null,null,null,null,null,null,null,null,null,null,{"$f":"IF(COUNTIF($M$2:M202,M202)=1, MAX($R$1:R201)+1,\"\")","v":""}]
[null,null,null,null,null,null,null,null,null,null,null,null,null,null,null,null,null,{"$f":"IF(COUNTIF($M$2:M203,M203)=1, MAX($R$1:R202)+1,\"\")","v":""}]
[null,null,null,null,null,null,null,null,null,null,null,null,null,null,null,null,null,{"$f":"IF(COUNTIF($M$2:M204,M204)=1, MAX($R$1:R203)+1,\"\")","v":""}]
[null,null,null,null,null,null,null,null,null,null,null,null,null,null,null,null,null,{"$f":"IF(COUNTIF($M$2:M205,M205)=1, MAX($R$1:R204)+1,\"\")","v":""}]
[null,null,null,null,null,null,null,null,null,null,null,null,null,null,null,null,null,{"$f":"IF(COUNTIF($M$2:M206,M206)=1, MAX($R$1:R205)+1,\"\")","v":""}]
[null,null,null,null,null,null,null,null,null,null,null,null,null,null,null,null,null,{"$f":"IF(COUNTIF($M$2:M207,M207)=1, MAX($R$1:R206)+1,\"\")","v":""}]
[null,null,null,null,null,null,null,null,null,null,null,null,null,null,null,null,null,{"$f":"IF(COUNTIF($M$2:M208,M208)=1, MAX($R$1:R207)+1,\"\")","v":""}]
[null,null,null,null,null,null,null,null,null,null,null,null,null,null,null,null,null,{"$f":"IF(COUNTIF($M$2:M209,M209)=1, MAX($R$1:R208)+1,\"\")","v":""}]
[null,null,null,null,null,null,null,null,null,null,null,null,null,null,null,null,null,{"$f":"IF(COUNTIF($M$2:M210,M210)=1, MAX($R$1:R209)+1,\"\")","v":""}]
[null,null,null,null,null,null,null,null,null,null,null,null,null,null,null,null,null,{"$f":"IF(COUNTIF($M$2:M211,M211)=1, MAX($R$1:R210)+1,\"\")","v":""}]
[null,null,null,null,null,null,null,null,null,null,null,null,null,null,null,null,null,{"$f":"IF(COUNTIF($M$2:M212,M212)=1, MAX($R$1:R211)+1,\"\")","v":""}]
[null,null,null,null,null,null,null,null,null,null,null,null,null,null,null,null,null,{"$f":"IF(COUNTIF($M$2:M213,M213)=1, MAX($R$1:R212)+1,\"\")","v":""}]
[null,null,null,null,null,null,null,null,null,null,null,null,null,null,null,null,null,{"$f":"IF(COUNTIF($M$2:M214,M214)=1, MAX($R$1:R213)+1,\"\")","v":""}]
[null,null,null,null,null,null,null,null,null,null,null,null,null,null,null,null,null,{"$f":"IF(COUNTIF($M$2:M215,M215)=1, MAX($R$1:R214)+1,\"\")","v":""}]
[null,null,null,null,null,null,null,null,null,null,null,null,null,null,null,null,null,{"$f":"IF(COUNTIF($M$2:M216,M216)=1, MAX($R$1:R215)+1,\"\")","v":""}]
[null,null,null,null,null,null,null,null,null,null,null,null,null,null,null,null,null,{"$f":"IF(COUNTIF($M$2:M217,M217)=1, MAX($R$1:R216)+1,\"\")","v":""}]
[null,null,null,null,null,null,null,null,null,null,null,null,null,null,null,null,null,{"$f":"IF(COUNTIF($M$2:M218,M218)=1, MAX($R$1:R217)+1,\"\")","v":""}]
[null,null,null,null,null,null,null,null,null,null,null,null,null,null,null,null,null,{"$f":"IF(COUNTIF($M$2:M219,M219)=1, MAX($R$1:R218)+1,\"\")","v":""}]
[null,null,null,null,null,null,null,null,null,null,null,null,null,null,null,null,null,{"$f":"IF(COUNTIF($M$2:M220,M220)=1, MAX($R$1:R219)+1,\"\")","v":""}]
[null,null,null,null,null,null,null,null,null,null,null,null,null,null,null,null,null,{"$f":"IF(COUNTIF($M$2:M221,M221)=1, MAX($R$1:R220)+1,\"\")","v":""}]
[null,null,null,null,null,null,null,null,null,null,null,null,null,null,null,null,null,{"$f":"IF(COUNTIF($M$2:M222,M222)=1, MAX($R$1:R221)+1,\"\")","v":""}]
[null,null,null,null,null,null,null,null,null,null,null,null,null,null,null,null,null,{"$f":"IF(COUNTIF($M$2:M223,M223)=1, MAX($R$1:R222)+1,\"\")","v":""}]
[null,null,null,null,null,null,null,null,null,null,null,null,null,null,null,null,null,{"$f":"IF(COUNTIF($M$2:M224,M224)=1, MAX($R$1:R223)+1,\"\")","v":""}]
[null,null,null,null,null,null,null,null,null,null,null,null,null,null,null,null,null,{"$f":"IF(COUNTIF($M$2:M225,M225)=1, MAX($R$1:R224)+1,\"\")","v":""}]
[null,null,null,null,null,null,null,null,null,null,null,null,null,null,null,null,null,{"$f":"IF(COUNTIF($M$2:M226,M226)=1, MAX($R$1:R225)+1,\"\")","v":""}]
[null,null,null,null,null,null,null,null,null,null,null,null,null,null,null,null,null,{"$f":"IF(COUNTIF($M$2:M227,M227)=1, MAX($R$1:R226)+1,\"\")","v":""}]
[null,null,null,null,null,null,null,null,null,null,null,null,null,null,null,null,null,{"$f":"IF(COUNTIF($M$2:M228,M228)=1, MAX($R$1:R227)+1,\"\")","v":""}]
[null,null,null,null,null,null,null,null,null,null,null,null,null,null,null,null,null,{"$f":"IF(COUNTIF($M$2:M229,M229)=1, MAX($R$1:R228)+1,\"\")","v":""}]
[null,null,null,null,null,null,null,null,null,null,null,null,null,null,null,null,null,{"$f":"IF(COUNTIF($M$2:M230,M230)=1, MAX($R$1:R229)+1,\"\")","v":""}]
[null,null,null,null,null,null,null,null,null,null,null,null,null,null,null,null,null,{"$f":"IF(COUNTIF($M$2:M231,M231)=1, MAX($R$1:R230)+1,\"\")","v":""}]
[null,null,null,null,null,null,null,null,null,null,null,null,null,null,null,null,null,{"$f":"IF(COUNTIF($M$2:M232,M232)=1, MAX($R$1:R231)+1,\"\")","v":""}]
[null,null,null,null,null,null,null,null,null,null,null,null,null,null,null,null,null,{"$f":"IF(COUNTIF($M$2:M233,M233)=1, MAX($R$1:R232)+1,\"\")","v":""}]
[null,null,null,null,null,null,null,null,null,null,null,null,null,null,null,null,null,{"$f":"IF(COUNTIF($M$2:M234,M234)=1, MAX($R$1:R233)+1,\"\")","v":""}]
[null,null,null,null,null,null,null,null,null,null,null,null,null,null,null,null,null,{"$f":"IF(COUNTIF($M$2:M235,M235)=1, MAX($R$1:R234)+1,\"\")","v":""}]